Workbook

Sheet MATRIZ DE INDICADORES
D2: MACROPROCESO ESTRATÉGICO | R2: CÓDIGO: ESGr027
D3: PROCESO GESTIÓN SISTEMAS INTEGRADOS - CALIDAD | R3: VERSIÓN: 8
D4: MATRIZ DE MEDICIÓN Y SEGUIMIENTO A LOS PROCESOS DE GESTIÓN | R4: VIGENCIA: 2023-07-28
R5: PÁGINA: 1 de 7
P7: FECHA DE ACTUALIZACIÓN: | R7: AÑO | S7: MES | T7: DÍA
R8: 2024 | S8: 7 | T8: 22
B12: PROCESO GESTIÓN | C12: FRENTES DEL PLAN ESTRATÉGICO | D12: LINEAMIENTOS DE LA POLÍTICA DE CALIDAD | E12: OBJETIVOS DE CALIDAD | F12: OBJETIVOS ESPECÍFICOS | G12: NOMBRE INDICADOR | H12: FÓRMULA | I12: TIPO DE INDICADOR | J12: SEGUIMIENTO MEDICIÓN | K12: META | L12: ACTIVIDAD | M12: RESPONSABLE DE LA ACTIVIDAD | N12: ¿QUÉ RECURSOS SE REQUIEREN? | O12: FECHA EJECUCIÓN DE ACTIVIDADES | P12: EVIDENCIA | Q12: ¿CUÁNDO FINALIZARÁ? | R12: RESULTADO | S12: NIVEL OBTENIDO | T12: ACCESO
B13: Interacción Universitaria | C13: Frente Estratégico III: Educación para la vida, los valores democráticos, la civilidad y la libertad | D13: La Universidad de Cundinamarca se compromete con el cumplimiento de requisitos y la satisfacción de las necesidades y expectativas de la comunidad universitaria a través de la adopción del campo multidimensional de aprendizaje, que consolida una misión trascendente y de impacto desde sus funciones sustantivas | E13: Promover una misión trascendente y de impacto a través del fortalecimiento de los resultados planteados por la Universidad de Cundinamarca en sus funciones sustantivas. | F13: Lograr una eficacia del 90% frente a la prestación del servicio de Educación Continuada al usuario durante el 2024 con verificación semestral | G13: Satisfacción del usuario del servicio de la Educación Continuada | H13: (# Evaluaciones Calificadas ≥ 4) * 100 / Total Evaluaciones | I13: Eficacia | J13: Semestral | K13: 0.9 | L13: Verificar y aprobar ficha técnica del evento o actividad a desarrollar y la documentación pertinente para el mismo | M13: Dirección de Interacción Social Universitaria | N13: Equipos de computo, herramientas ofimáticas, recurso humano, información documentada | O13: 2024 | P13: MIUr008 MIUr014 MIUr015 MIUr021 | Q13: 2024-12-01 | R13: 0.95 | S13: EXCELENTE | T13: MIU-1
L14: Divulgar el evento o actividad por medio de los gestores del conocimiento | M14: Dirección de Interacción Social Universitaria | N14: Recurso Humano | O14: 2024 | P14: N/A
L15: Consolidar listado de inscritos para envío al docente responsable de la actividad | M15: Dirección de Interacción Social Universitaria | N15: Información documentada, recurso humano, herramientas ofimáticas | O15: 2024 | P15: Correo electrónico
L16: Implementar procedimiento establecidos en el proceso MIUP05 - Educación Continuada | M16: Dirección de Interacción Social Universitaria | N16: Recurso Humano, Información documentada, Aplicativo de Planes de Mejoramiento (tecnológico) | O16: 2024 | P16: Registros (actas o informes) de los seguimientos en el aplicativo
L17: Evaluar mediante el indicador establecido | M17: Dirección de Interacción Social Universitaria | N17: Recurso Humano, Información documentada | O17: Semestral 2024 | P17: Reporte del indicador - Ficha técnica
F18: Incrementar al 85% el resultado del indicador de satisfacción de los estudiantes frente al desempeño en la práctica de pasantías durante el 2023 | G18: Satifacción del estudiante frente al despempeño en la práctica de pasantía | H18: (# Evaluaciones Calificadas ≥ 4) * 100 / Total Evaluaciones | I18: Eficacia | J18: Semestral | K18: 0.85 | L18: Suscribir convenio y/o acuerdos de voluntades | M18: Dirección de Interacción Social Universitaria -Dirección Jurídica - Empresas | N18: Información documentada, recurso humano, herramientas ofimáticas, equipos de computo | O18: 2023 | P18: Convenio y/o acuerdos de voluntades | Q18: 2023-12-01 | R18: ='MIU-2'!E49 ->  | S18: EXCELENTE | T18: MIU-2
L19: Solicitar intención a los programas para realizar práctica o pasantía | M19: Estudiantes - Programas - Empresas | N19: Información documentada, recurso humano, herramientas ofimáticas, equipos de computo | O19: 2023 | P19: Lista de chequeo
L20: Realizar práctica o pasantía | M20: Estudiantes - Programas - Empresas | N20: Información documentada, recurso humano, herramientas ofimáticas, equipos de computo | O20: 2023 | P20: Informe de práctica o pasantía (mensual)
L21: Evaluar mediante el indicador establecido | M21: Dirección de Interacción Social Universitaria | N21: Recurso Humano, Información documentada | O21: Semestral 2023 | P21: Reporte del indicador - Ficha técnica
F22: Incrementar al 95% el resultado del indicador de satisfacción de las Instituciones o Empresas hacia el desempeño de la práctica o pasantía durante el 2023 | G22: Satisfacción de la Institución o Empresa hacia el desempeño de la práctica o pasantía | H22: (# Evaluaciones Calificadas ≥ 4) * 100 / Total Evaluaciones | I22: Eficacia | J22: Semestral | K22: 0.95 | L22: Recibir de la empresa la carta de intención y los documentos requeridos para la suscripción del convenio | M22: Dirección de Interacción Social Universitaria | N22: Información documentada, recurso humano, herramientas ofimáticas, equipos de computo | O22: 2023 | P22: Carta de intención, documentos descritos en el MIUP06 | Q22: 2023-12-01 | R22: ='MIU-3'!E48 -> 0.9012875536 | S22: BUENO | T22: MIU-3
L23: Suscribir convenio y/o acuerdos de voluntades | M23: Dirección de Interacción Social Universitaria -Dirección Jurídica - Empresas | N23: Información documentada, recurso humano, herramientas ofimáticas, equipos de computo | O23: 2023 | P23: Convenio y/o acuerdos de voluntades
L24: Seleccionar el escenario de práctica | M24: Estudiantes - Programas Académicos | N24: Información documentada, recurso humano, herramientas ofimáticas, equipos de computo | O24: 2023 | P24: Registro
L25: Realizar práctica o pasantía | M25: Estudiantes - Programas Académicos - Empresas | N25: Información documentada, recurso humano, herramientas ofimáticas, equipos de computo | O25: 2023 | P25: Informe de práctica o pasantía (mensual)
L26: Evaluar mediante el indicador establecido | M26: Dirección de Interacción Social Universitaria | N26: Recurso Humano, Información documentada | O26: Semestral 2023 | P26: Reporte del indicador - Ficha técnica
F27: Lograr el 80% del uso de los convenios que se encuentran vigentes para el 2024, con el fin de dinamizar la interacción con la sociedad, propendiendo por el mejoramiento de la calidad de vida de las comunidades | G27: Vinculación efectiva con la comunidad y el sector productivo | H27: #convenios en uso * 100 / # total de convenios vigentes | I27: Acreditación | J27: Semestral | K27: 0.8 | L27: Recibir de la empresa la carta de intención y los documentos requeridos para la suscripción del convenio | M27: Dirección de Interacción Social Universitaria | N27: Información documentada, recurso humano, herramientas ofimáticas, equipos de computo | O27: 2024 | P27: Carta de intención, documentos descritos en el MIUP06 | Q27: 2024-12-31 | R27: 0.82 | S27: EXCELENTE | T27: MIU-5'
L28: Revisar que la documentación recibida cumpla con los requisitos | M28: Dirección de Interacción Social Universitaria | N28: Información documentada, recurso humano, herramientas ofimáticas, equipos de computo | O28: 2024 | P28: MIUr036 - HOJA DE RUTA CONVENIOS
L29: Suscribir convenio y/o acuerdos de voluntades | M29: Dirección de Interacción Social Universitaria -Dirección Jurídica - Empresas | N29: Información documentada, recurso humano, herramientas ofimáticas, equipos de computo | O29: 2024 | P29: Convenio y/o acuerdos de voluntades
L30: Notificar a la empresa o programa solicitante | M30: Dirección de Interacción Social Universitaria | N30: Información documentada, recurso humano, herramientas ofimáticas, equipos de computo | O30: 2024 | P30: Correo electrónico, Minuta
L31: Evaluar mediante el indicador establecido | M31: Dirección de Interacción Social Universitaria | N31: Recurso Humano, Información documentada | O31: Semestral 2024 | P31: Reporte del indicador - Ficha técnica
C32: Frente Estratégico VI: Organización Universitaria Digital | D32: Se legitima como una organización social del conocimiento y el aprendizaje que se compromete con el pensamiento basado en riesgos y el mejoramiento continuo mediante buenas prácticas administrativas y académicas en búsqueda de la acreditación de programas y la acreditación institucional, enfocándose en el bienestar de la comunidad universitaria como factor constitutivo de la vida y la libertad y la consolidación de una organización universitaria inteligente con alma y corazón. | E32: Mejorar continuamente el desempeño de los procesos a través de la implementación de buenas prácticas institucionales y de la aplicación de los mecanismos dispuestos por la Universidad de Cundinamarca, para la constitución de una organización universitaria inteligente con alma y corazón. | F32: Lograr en un 95% la eficacia en la ejecución de las actividades de Proyección Social durante el 2024 con un seguimiento semestral | G32: Evaluación de las actividades de Proyección Social | H32: (# Evaluaciones Calificadas ≥ 4) * 100 / Total Evaluaciones | I32: Eficacia | J32: Semestral | K32: 0.95 | L32: Aperturar la convocatoria interna de proyectos de Interacción Social Universitaria | M32: Dirección de Interacción Social Universitaria - Vicerrectoría Académica | N32: Información documentada, recurso humano, herramientas ofimáticas, equipos de computo | O32: Semestral 2024 | P32: Términos de referencia, Proyectos aprobados | Q32: 2024-12-31 | R32: 0.96 | S32: EXCELENTE | T32: MIU-4
L33: Implementar el procedimiento MIUP07 - INTERACCIÓN SOCIAL | M33: Programas Académicos | N33: Información documentada, recurso humano, herramientas ofimáticas, equipos de computo | O33: Semestral 2024 | P33: Registros del procedimiento MIUP07
L34: Evaluar mediante el indicador establecido | M34: Dirección de Interacción Social Universitaria | N34: Recurso Humano, Información documentada | O34: Semestral 2024 | P34: Reporte del indicador - Ficha técnica
B49: Diagonal 18 No. 20-29 Fusagasugá – Cundinamarca Teléfono (601) 8281483 Línea Gratuita 018000180414 www.ucundinamarca.edu.co E-mail: info@ucundinamarca.edu.co NIT: 890.680.062-2
B50: Documento controlado por el Sistema de Gestión de la Calidad Asegúrese que corresponde a la última versión consultando el Portal Institucional
D65: LINEAMIENTOS DE LA POLÍTICA DE CALIDAD | E65: OBJETIVOS DE CALIDAD | F65: ALINEACIÓN DE LOS INDICADORES CON LOS DOCUMENTOS ESTRATÉGICOS Y LOS OBJETIVOS DE CALIDAD
D66: LINEAMIENTOS DE LA POLÍTICA DE SEGURIDAD Y SALUD EN EL TRABAJO | E66: OBJETIVOS DE SEGURIDAD Y SALUD EN EL TRABAJO | F66: ALINEACIÓN DE LOS INDICADORES CON LOS DOCUMENTOS ESTRATÉGICOS Y LOS OBJETIVOS DE SEGURIDAD Y SALUD EN EL TRABAJO
D67: LINEAMIENTOS DE LA POLÍTICA DE AMBIENTAL | E67: OBJETIVOS DE AMBIENTAL | F67: ALINEACIÓN DE LOS INDICADORES CON LOS DOCUMENTOS ESTRATÉGICOS Y LOS OBJETIVOS DE AMBIENTAL
D68: LINEAMIENTOS DE LA POLÍTICA DE SEGURIDAD DE LA INFORMACIÓN | E68: OBJETIVOS DE SEGURIDAD DE LA INFORMACIÓN | F68: ALINEACIÓN DE LOS INDICADORES CON LOS DOCUMENTOS ESTRATÉGICOS Y LOS OBJETIVOS DE SEGURIDAD DE LA INFORMACIÓN
D69: LINEAMIENTOS DE LA POLÍTICA DE SEGURIDAD DE ANTISOBORNO | E69: OBJETIVOS DE SEGURIDAD DE ANTISOBORNO | F69: ALINEACIÓN DE LOS INDICADORES CON LOS DOCUMENTOS ESTRATÉGICOS Y LOS OBJETIVOS DE SEGURIDAD DE ANTISOBORNO
D70: LINEAMIENTOS DE LA POLÍTICA DE LA CONCILIACIÓN DE LA VIDA PERSONAL, FAMILIAR Y LABORAL | E70: OBJETIVOS DE LA CONCILIACIÓN DE LA VIDA PERSONAL, FAMILIAR Y LABORAL | F70: ALINEACIÓN DE LOS INDICADORES CON LOS DOCUMENTOS ESTRATÉGICOS Y LOS OBJETIVOS DE LA CONCILIACIÓN DE LA VIDA PERSONAL, FAMILIAR Y LABORAL

Sheet ----1 (hidden)
B2: REGRESAR
E5: MACROPROCESO ESTRATÉGICO | M5: CÓDIGO: ESGr027
E6: PROCESO GESTIÓN SISTEMAS INTEGRADOS | M6: VERSIÓN: 7
E7: MATRIZ DE MEDICIÓN Y SEGUIMIENTO A LOS PROCESOS DE GESTIÓN | M7: VIGENCIA: 2020-03-31
M8: PÁGINA: 1 de 1
C10: FICHA DE INDICADOR
C12: MACROPROCESO | I12: NOMBRE DEL INDICADOR
C13: PROCESO GESTIÓN
C14: RESPONSABLE DE MEDICIÓN
C16: 1. COMPORTAMIENTO DE INDICADOR
C17: CLASIFICACIÓN DE LA MEDICIÓN | E17: 2 | H17: TIPO DE INDICADOR | L17: META ANUAL
C18: FORMULA | L18: UNIDAD DE MEDIDA
C20: TENDENCIA | H20: NIVEL DE SEGREGACIÓN * | L20: ESCALA
L21: Deficiente | M21: Aceptable | N21: Bueno | O21: Excelente
C23: ORIGEN DE DATOS | H23: FRECUENCIA DE LA MEDICIÓN | J23: TRIMESTRAL | L23: FRECUENCIA DE RESULTADO | N23: ANUAL
C26: RESULTADOS
J27: ANÁLISIS DE DATOS Los datos indican un crecimiento en los acompañamientos entre el primer trimestre y el segundo trimestre de mas del 100%, por la contratación del personal de la oficina En el tercer trimestre se muestra un decrecimiento con respecto al periodo anterior por las vacaciones a mitad de año, las personas se reintegraron entre julio y agosto.
J34: ACCIÓN FORMULADA Reformular la meta para el próximo año dependiendo de los recursos asignados.
J41: RESPONSABLE
J42: =E14 -> 0
C45: PERIODO DE EVALUACIÓN
C46: MES | D46: =IF(J23="MENSUAL","ENERO",IF(J23="TRIMESTRAL","MARZO",IF(J23="SEMESTRAL","JUNIO",IF(J23="ANUAL",YEAR(TODAY()),"")))) -> MARZO | E46: =IF(J23="MENSUAL","FEBRERO",IF(J23="TRIMESTRAL","JUNIO",IF(J23="SEMESTRAL","DICIEMBRE",""))) -> JUNIO | F46: =IF(J23="MENSUAL","MARZO",IF(J23="TRIMESTRAL","SEPTIEMBRE","")) -> SEPTIEMBRE | G46: =IF(J23="MENSUAL","ABRIL",IF(J23="TRIMESTRAL","DICIEMBRE","")) -> DICIEMBRE | H46: =IF(J23="MENSUAL","MAYO","") ->  | I46: =IF(J23="MENSUAL","JUNIO","") ->  | J46: =IF(J23="MENSUAL","JULIO","") ->  | K46: =IF(J23="MENSUAL","AGOSTO","") ->  | L46: =IF(J23="MENSUAL","SEPTIEMBRE","") ->  | M46: =IF(J23="MENSUAL","OCTUBRE","") ->  | N46: =IF(J23="MENSUAL","NOVIEMBRE","") ->  | O46: =IF(J23="MENSUAL","DICIEMBRE","") -> 
C47: =G18 -> 0
C48: =G19 -> 0
C49: VALOR | D49: =IFERROR(IF($E$17=1,D47/D48,IF($E$17=2,D47,"")),"") -> 0 | E49: =IFERROR(IF($E$17=1,E47/E48,IF($E$17=2,E47,"")),"") -> 0 | F49: 0 | G49: 0 | H49: 0 | I49: 0 | J49: 0 | K49: 0 | L49: 0 | M49: 0 | N49: 0 | O49: 0
C50: META PONDERADA | D50: =IF(AND(N23="ANUAL",J23="MENSUAL"),N17/12,IF(AND(N23="ANUAL",J23="TRIMESTRAL"),N17/4,IF(AND(N23="ANUAL",J23="SEMESTRAL"),N17/2,IF(AND(N23="ANUAL",J23="ANUAL"),N17,IF(AND(N23="SEMESTRAL",J23="MENSUAL"),N17/6,IF(AND(N23="SEMESTRAL",J23="TRIMESTRAL"),N17/2,IF(AND(N23="SEMESTRAL",J23="SEMESTRAL"),N17,IF(AND(N23="SEMESTRAL",J23="ANUAL"),"REVISAR FRECUENCIAS",IF(AND(N23="TRIMESTRAL",J23="MENSUAL"),N17/3,IF(AND(N23="TRIMESTRAL",J23="TRIMESTRAL"),N17,IF(AND(N23="TRIMESTRAL",J23="SEMESTRAL"),"REVISAR FRECUENCIAS",IF(AND(N23="TRIMESTRAL",J23="ANUAL"),"REVISAR FRECUENCIAS",IF(AND(N23="MENSUAL",J23="MENSUAL"),N17,IF(AND(N23="MENSUAL",J23="TRIMESTRAL"),"REVISAR FRECUENCIAS",IF(AND(N23="MENSUAL",J23="SEMESTRAL"),"REVISAR FRECUENCIAS",IF(AND(N23="MENSUAL",J23="ANUAL"),"REVISAR FRECUENCIAS","")))))))))))))))) -> 0 | E50: =IF(AND(N23="ANUAL",J23="MENSUAL"),N17/12+D50,IF(AND(N23="ANUAL",J23="TRIMESTRAL"),N17/4+D50,IF(AND(N23="ANUAL",J23="SEMESTRAL"),N17/2+D50,IF(AND(N23="SEMESTRAL",J23="MENSUAL"),N17/6+D50,IF(AND(N23="SEMESTRAL",J23="TRIMESTRAL"),N17/2+D50,IF(AND(N23="SEMESTRAL",J23="SEMESTRAL"),N17,IF(AND(N23="TRIMESTRAL",J23="MENSUAL"),N17/3+D50,IF(AND(N23="TRIMESTRAL",J23="TRIMESTRAL"),N17,IF(AND(N23="MENSUAL",J23="MENSUAL"),N17,""))))))))) -> 0 | F50: =IF(AND(N23="ANUAL",J23="MENSUAL"),N17/12+E50,IF(AND(N23="ANUAL",J23="TRIMESTRAL"),N17/4+E50,IF(AND(N23="SEMESTRAL",J23="MENSUAL"),N17/6+E50,IF(AND(N23="SEMESTRAL",J23="TRIMESTRAL"),N17/2,IF(AND(N23="TRIMESTRAL",J23="MENSUAL"),N17/3+E50,IF(AND(N23="TRIMESTRAL",J23="TRIMESTRAL"),N17,IF(AND(N23="MENSUAL",J23="MENSUAL"),N17,""))))))) -> 0 | G50: =IF(AND(N23="ANUAL",J23="MENSUAL"),N17/12+F50,IF(AND(N23="ANUAL",J23="TRIMESTRAL"),N17/4+F50,IF(AND(N23="SEMESTRAL",J23="MENSUAL"),N17/6+F50,IF(AND(N23="SEMESTRAL",J23="TRIMESTRAL"),N17/2+F50,IF(AND(N23="TRIMESTRAL",J23="MENSUAL"),N17/3,IF(AND(N23="TRIMESTRAL",J23="TRIMESTRAL"),N17,IF(AND(N23="MENSUAL",J23="MENSUAL"),N17,""))))))) -> 0 | H50: =IF(AND($N$23="ANUAL",$J$23="MENSUAL"),$N$17/12+G50,IF(AND(N23="SEMESTRAL",J23="MENSUAL"),N17/6+G50,IF(AND(N23="TRIMESTRAL",J23="MENSUAL"),N17/3+G50,IF(AND(N23="MENSUAL",J23="MENSUAL"),N17,"")))) ->  | I50: =IF(AND($N$23="ANUAL",$J$23="MENSUAL"),$N$17/12+H50,IF(AND(N23="SEMESTRAL",J23="MENSUAL"),N17/6+H50,IF(AND(N23="TRIMESTRAL",J23="MENSUAL"),N17/3+H50,IF(AND(N23="MENSUAL",J23="MENSUAL"),N17,"")))) ->  | J50: =IF(AND($N$23="ANUAL",$J$23="MENSUAL"),$N$17/12+I50,IF(AND(N23="SEMESTRAL",J23="MENSUAL"),N17/6,IF(AND(N23="TRIMESTRAL",J23="MENSUAL"),N17/3,IF(AND(N23="MENSUAL",J23="MENSUAL"),N17,"")))) ->  | K50: =IF(AND($N$23="ANUAL",$J$23="MENSUAL"),$N$17/12+J50,IF(AND(N23="SEMESTRAL",J23="MENSUAL"),N17/6+J50,IF(AND(N23="TRIMESTRAL",J23="MENSUAL"),N17/3+J50,IF(AND(N23="MENSUAL",J23="MENSUAL"),N17,"")))) ->  | L50: =IF(AND($N$23="ANUAL",$J$23="MENSUAL"),$N$17/12+K50,IF(AND(N23="SEMESTRAL",J23="MENSUAL"),N17/6+K50,IF(AND(N23="TRIMESTRAL",J23="MENSUAL"),N17/3+K50,IF(AND(N23="MENSUAL",J23="MENSUAL"),N17,"")))) ->  | M50: =IF(AND($N$23="ANUAL",$J$23="MENSUAL"),$N$17/12+L50,IF(AND(N23="SEMESTRAL",J23="MENSUAL"),N17/6+L50,IF(AND(N23="TRIMESTRAL",J23="MENSUAL"),N17/3,IF(AND(N23="MENSUAL",J23="MENSUAL"),N17,"")))) ->  | N50: =IF(AND($N$23="ANUAL",$J$23="MENSUAL"),$N$17/12+M50,IF(AND(N23="SEMESTRAL",J23="MENSUAL"),N17/6+M50,IF(AND(N23="TRIMESTRAL",J23="MENSUAL"),N17/3+M50,IF(AND(N23="MENSUAL",J23="MENSUAL"),N17,"")))) ->  | O50: =IF(AND($N$23="ANUAL",$J$23="MENSUAL"),$N$17/12+N50,IF(AND(N23="SEMESTRAL",J23="MENSUAL"),N17/6+N50,IF(AND(N23="TRIMESTRAL",J23="MENSUAL"),N17/3+N50,IF(AND(N23="MENSUAL",J23="MENSUAL"),N17,"")))) -> 
C52: NIVEL DE SEGREGACIÓN *
C53: UNIDAD SEGREGADA (Ej. Facultad, Programa Académico, Área) | G53: RESULTADO | K53: ANALISIS DE DATOS SEGREGADO
G73: Estratégico | J73: Eficacia
G74: Misional | J74: Eficiencia
G75: Apoyo | J75: Acreditación
G76: Seguimiento, Medición, Análisis y Evaluación | J76: Positiva
G77: Direccionamiento Estratégico | J77: Negativa
G78: Planeación Institucional | J78: Por Unidad Regional
G79: Proyectos Especiales y Relaciones Interinstitucionales | J79: Por Facultad
G80: Sistemas Integrados | J80: Por Programa Académico
G81: Autoevaluación y Acreditación | J81: Por área
G82: Comunicaciones | J82: Por Laboratorio
G83: Formación y Aprendizaje | J83: Otros
G84: Ciencia, Tecnología e Innovación | J84: No Aplica
G85: Interacción Social Universitaria
G86: Bienestar Universitario
G87: Admisiones y Registro
G88: Graduados
G89: Dialogando con el Mundo
G90: Talento Humano
G91: Jurídica
G92: Financiera
G93: Sistemas y Tecnología
G94: Bienes y Servicios
G95: Documental
G96: Apoyo Académico
G97: Control Interno
G98: Control Disciplinario
G99: Servicio de Atención al Ciudadano

Sheet ----2 (hidden)
B2: REGRESAR
E5: MACROPROCESO ESTRATÉGICO | M5: CÓDIGO: ESGr027
E6: PROCESO GESTIÓN SISTEMAS INTEGRADOS | M6: VERSIÓN: 7
E7: MATRIZ DE MEDICIÓN Y SEGUIMIENTO A LOS PROCESOS DE GESTIÓN | M7: VIGENCIA: 2020-03-31
M8: PÁGINA: 1 de 1
C10: FICHA DE INDICADOR
C12: MACROPROCESO | I12: NOMBRE DEL INDICADOR
C13: PROCESO GESTIÓN
C14: RESPONSABLE DE MEDICIÓN
C16: 1. COMPORTAMIENTO DE INDICADOR
C17: CLASIFICACIÓN DE LA MEDICIÓN | E17: 1 | H17: TIPO DE INDICADOR | L17: META ANUAL
C18: FORMULA | E18: NUMERADOR | L18: UNIDAD DE MEDIDA
E19: DENOMINADOR
C20: TENDENCIA | H20: NIVEL DE SEGREGACIÓN * | L20: ESCALA
L21: Deficiente | M21: Aceptable | N21: Bueno | O21: Excelente
C23: ORIGEN DE DATOS NUMERADOR | H23: FRECUENCIA DE LA MEDICIÓN | J23: TRIMESTRAL | L23: FRECUENCIA DE RESULTADO | N23: TRIMESTRAL
C24: ORIGEN DE DATOS DENOMINADOR
C26: RESULTADOS
J27: ANÁLISIS DE DATOS
J34: ACCIÓN FORMULADA
J41: RESPONSABLE
J42: =E14 -> 0
C45: PERIODO DE EVALUACIÓN
C46: MES | D46: =IF(J23="MENSUAL","ENERO",IF(J23="TRIMESTRAL","MARZO",IF(J23="SEMESTRAL","JUNIO",IF(J23="ANUAL",YEAR(TODAY()),"")))) -> MARZO | E46: =IF(J23="MENSUAL","FEBRERO",IF(J23="TRIMESTRAL","JUNIO",IF(J23="SEMESTRAL","DICIEMBRE",""))) -> JUNIO | F46: =IF(J23="MENSUAL","MARZO",IF(J23="TRIMESTRAL","SEPTIEMBRE","")) -> SEPTIEMBRE | G46: =IF(J23="MENSUAL","ABRIL",IF(J23="TRIMESTRAL","DICIEMBRE","")) -> DICIEMBRE | H46: =IF(J23="MENSUAL","MAYO","") ->  | I46: =IF(J23="MENSUAL","JUNIO","") ->  | J46: =IF(J23="MENSUAL","JULIO","") ->  | K46: =IF(J23="MENSUAL","AGOSTO","") ->  | L46: =IF(J23="MENSUAL","SEPTIEMBRE","") ->  | M46: =IF(J23="MENSUAL","OCTUBRE","") ->  | N46: =IF(J23="MENSUAL","NOVIEMBRE","") ->  | O46: =IF(J23="MENSUAL","DICIEMBRE","") -> 
C47: =G18 -> 0
C48: =G19 -> 0
C49: VALOR | D49: =IFERROR(IF($E$17=1,D47/D48,IF($E$17=2,D47,"")),"") ->  | E49: =IFERROR(IF($E$17=1,E47/E48,IF($E$17=2,E47,"")),"") -> 
C50: META PONDERADA | D50: =IF(AND(N23="ANUAL",J23="MENSUAL"),N17/12,IF(AND(N23="ANUAL",J23="TRIMESTRAL"),N17/4,IF(AND(N23="ANUAL",J23="SEMESTRAL"),N17/2,IF(AND(N23="ANUAL",J23="ANUAL"),N17,IF(AND(N23="SEMESTRAL",J23="MENSUAL"),N17/6,IF(AND(N23="SEMESTRAL",J23="TRIMESTRAL"),N17/2,IF(AND(N23="SEMESTRAL",J23="SEMESTRAL"),N17,IF(AND(N23="SEMESTRAL",J23="ANUAL"),"REVISAR FRECUENCIAS",IF(AND(N23="TRIMESTRAL",J23="MENSUAL"),N17/3,IF(AND(N23="TRIMESTRAL",J23="TRIMESTRAL"),N17,IF(AND(N23="TRIMESTRAL",J23="SEMESTRAL"),"REVISAR FRECUENCIAS",IF(AND(N23="TRIMESTRAL",J23="ANUAL"),"REVISAR FRECUENCIAS",IF(AND(N23="MENSUAL",J23="MENSUAL"),N17,IF(AND(N23="MENSUAL",J23="TRIMESTRAL"),"REVISAR FRECUENCIAS",IF(AND(N23="MENSUAL",J23="SEMESTRAL"),"REVISAR FRECUENCIAS",IF(AND(N23="MENSUAL",J23="ANUAL"),"REVISAR FRECUENCIAS","")))))))))))))))) -> 0 | E50: =IF(AND(N23="ANUAL",J23="MENSUAL"),N17/12+D50,IF(AND(N23="ANUAL",J23="TRIMESTRAL"),N17/4+D50,IF(AND(N23="ANUAL",J23="SEMESTRAL"),N17/2+D50,IF(AND(N23="SEMESTRAL",J23="MENSUAL"),N17/6+D50,IF(AND(N23="SEMESTRAL",J23="TRIMESTRAL"),N17/2+D50,IF(AND(N23="SEMESTRAL",J23="SEMESTRAL"),N17,IF(AND(N23="TRIMESTRAL",J23="MENSUAL"),N17/3+D50,IF(AND(N23="TRIMESTRAL",J23="TRIMESTRAL"),N17,IF(AND(N23="MENSUAL",J23="MENSUAL"),N17,""))))))))) -> 0 | F50: =IF(AND(N23="ANUAL",J23="MENSUAL"),N17/12+E50,IF(AND(N23="ANUAL",J23="TRIMESTRAL"),N17/4+E50,IF(AND(N23="SEMESTRAL",J23="MENSUAL"),N17/6+E50,IF(AND(N23="SEMESTRAL",J23="TRIMESTRAL"),N17/2,IF(AND(N23="TRIMESTRAL",J23="MENSUAL"),N17/3+E50,IF(AND(N23="TRIMESTRAL",J23="TRIMESTRAL"),N17,IF(AND(N23="MENSUAL",J23="MENSUAL"),N17,""))))))) -> 0 | G50: =IF(AND(N23="ANUAL",J23="MENSUAL"),N17/12+F50,IF(AND(N23="ANUAL",J23="TRIMESTRAL"),N17/4+F50,IF(AND(N23="SEMESTRAL",J23="MENSUAL"),N17/6+F50,IF(AND(N23="SEMESTRAL",J23="TRIMESTRAL"),N17/2+F50,IF(AND(N23="TRIMESTRAL",J23="MENSUAL"),N17/3,IF(AND(N23="TRIMESTRAL",J23="TRIMESTRAL"),N17,IF(AND(N23="MENSUAL",J23="MENSUAL"),N17,""))))))) -> 0 | H50: =IF(AND($N$23="ANUAL",$J$23="MENSUAL"),$N$17/12+G50,IF(AND(N23="SEMESTRAL",J23="MENSUAL"),N17/6+G50,IF(AND(N23="TRIMESTRAL",J23="MENSUAL"),N17/3+G50,IF(AND(N23="MENSUAL",J23="MENSUAL"),N17,"")))) ->  | I50: =IF(AND($N$23="ANUAL",$J$23="MENSUAL"),$N$17/12+H50,IF(AND(N23="SEMESTRAL",J23="MENSUAL"),N17/6+H50,IF(AND(N23="TRIMESTRAL",J23="MENSUAL"),N17/3+H50,IF(AND(N23="MENSUAL",J23="MENSUAL"),N17,"")))) ->  | J50: =IF(AND($N$23="ANUAL",$J$23="MENSUAL"),$N$17/12+I50,IF(AND(N23="SEMESTRAL",J23="MENSUAL"),N17/6,IF(AND(N23="TRIMESTRAL",J23="MENSUAL"),N17/3,IF(AND(N23="MENSUAL",J23="MENSUAL"),N17,"")))) ->  | K50: =IF(AND($N$23="ANUAL",$J$23="MENSUAL"),$N$17/12+J50,IF(AND(N23="SEMESTRAL",J23="MENSUAL"),N17/6+J50,IF(AND(N23="TRIMESTRAL",J23="MENSUAL"),N17/3+J50,IF(AND(N23="MENSUAL",J23="MENSUAL"),N17,"")))) ->  | L50: =IF(AND($N$23="ANUAL",$J$23="MENSUAL"),$N$17/12+K50,IF(AND(N23="SEMESTRAL",J23="MENSUAL"),N17/6+K50,IF(AND(N23="TRIMESTRAL",J23="MENSUAL"),N17/3+K50,IF(AND(N23="MENSUAL",J23="MENSUAL"),N17,"")))) ->  | M50: =IF(AND($N$23="ANUAL",$J$23="MENSUAL"),$N$17/12+L50,IF(AND(N23="SEMESTRAL",J23="MENSUAL"),N17/6+L50,IF(AND(N23="TRIMESTRAL",J23="MENSUAL"),N17/3,IF(AND(N23="MENSUAL",J23="MENSUAL"),N17,"")))) ->  | N50: =IF(AND($N$23="ANUAL",$J$23="MENSUAL"),$N$17/12+M50,IF(AND(N23="SEMESTRAL",J23="MENSUAL"),N17/6+M50,IF(AND(N23="TRIMESTRAL",J23="MENSUAL"),N17/3+M50,IF(AND(N23="MENSUAL",J23="MENSUAL"),N17,"")))) ->  | O50: =IF(AND($N$23="ANUAL",$J$23="MENSUAL"),$N$17/12+N50,IF(AND(N23="SEMESTRAL",J23="MENSUAL"),N17/6+N50,IF(AND(N23="TRIMESTRAL",J23="MENSUAL"),N17/3+N50,IF(AND(N23="MENSUAL",J23="MENSUAL"),N17,"")))) -> 
C52: NIVEL DE SEGREGACIÓN *
C53: UNIDAD SEGREGADA (Ej. Facultad, Programa Académico, Área) | G53: RESULTADO | K53: ANALISIS DE DATOS SEGREGADO
G72: Estratégico | J72: Eficacia
G73: Misional | J73: Eficiencia
G74: Apoyo | J74: Acreditación
G75: Seguimiento, Medición, Análisis y Evaluación | J75: Positiva
G76: Direccionamiento Estratégico | J76: Negativa
G77: Planeación Institucional | J77: Por Unidad Regional
G78: Proyectos Especiales y Relaciones Interinstitucionales | J78: Por Facultad
G79: Sistemas Integrados | J79: Por Programa Académico
G80: Autoevaluación y Acreditación | J80: Por área
G81: Comunicaciones | J81: Por Laboratorio
G82: Formación y Aprendizaje | J82: Otros
G83: Ciencia, Tecnología e Innovación | J83: No Aplica
G84: Interacción Social Universitaria
G85: Bienestar Universitario
G86: Admisiones y Registro
G87: Graduados
G88: Dialogando con el Mundo
G89: Talento Humano
G90: Jurídica
G91: Financiera
G92: Sistemas y Tecnología
G93: Bienes y Servicios
G94: Documental
G95: Apoyo Académico
G96: Control Interno
G97: Control Disciplinario
G98: Servicio de Atención al Ciudadano

Sheet MIU-1
B2: REGRESAR
E5: MACROPROCESO ESTRATÉGICO | M5: CÓDIGO: ESGr027
E6: PROCESO GESTIÓN SISTEMAS INTEGRADOS - CALIDAD | M6: VERSIÓN: 8
E7: MATRIZ DE MEDICIÓN Y SEGUIMIENTO A LOS PROCESOS DE GESTIÓN | M7: VIGENCIA: 2023-07-28
M8: PÁGINA: 2 de 7
C10: FICHA DE INDICADOR
C12: MACROPROCESO | E12: Misional | I12: NOMBRE DEL INDICADOR | K12: Satisfacción del usuario del servicio de la Educación Continuada
C13: PROCESO GESTIÓN | E13: Interacción Social Universitaria
C14: RESPONSABLE DE MEDICIÓN | E14: Dirección de Interacción Universitaria
C16: 1. COMPORTAMIENTO DE INDICADOR
C17: CLASIFICACIÓN DE LA MEDICIÓN | E17: 1 | H17: TIPO DE INDICADOR | J17: Eficacia | L17: META ANUAL | N17: 0.9
C18: FORMULA | E18: NUMERADOR | G18: (# Evaluaciones Calificadas ≥ 4) * 100 | L18: UNIDAD DE MEDIDA | N18: Porcentual
E19: DENOMINADOR | G19: # Total Evaluaciones
C20: TENDENCIA | E20: Positiva | H20: NIVEL DE SEGREGACIÓN * | J20: No Aplica | L20: ESCALA
L21: Deficiente | M21: Aceptable | N21: Bueno | O21: Excelente
L22: 0 - 59,9% | M22: 60% - 80,9% | N22: 81% - 89,9% | O22: >/=90%
C23: ORIGEN DE DATOS NUMERADOR | E23: MIUr015 de los eventos realizados en el semestre | H23: FRECUENCIA DE LA MEDICIÓN | J23: SEMESTRAL | L23: FRECUENCIA DE RESULTADO | N23: SEMESTRAL
C24: ORIGEN DE DATOS DENOMINADOR | E24: Total MIUr015 recibidos
C26: RESULTADOS
J27: ANÁLISIS DE DATOS
J28: PRIMER SEMESTRE 2024.1: Realizado el análisis de las 91 evaluaciones en las diferentes actividades llevadas a cabo durante el primer periodo académico 2024, se evidencia que las acciones formativas tales como cursos, diplomados, congresos y seminarios realizados contaron con la satisfacción de los participantes de los servicios de educación continuada, teniendo en cuenta que el total de evaluaciones (91), obtuvierón una calificación igual o mayor a 4, por ende se cumple el indicador superando la meta establecida. SEGUNDO SEMESTRE 2024.2: Revisando las 142 evaluaciones, con concepto bueno y excelente sobre calificación 4 a 5, se evidencia que las acciones formativas tales como cursos, diplomados, congresos y seminarios realizados contaron con la satisfacción de los participantes de los servicios de educación continuada, teniendo en cuenta que el total de evaluaciones (142), obtuvierón una calificación igual o mayor a 4, por ende se cumple el indicador superando la meta establecida, logrando el 95% de las preguntas con calificación (4) Buena, lograron 336 y con calificación (5) Excelente, lograron 1.269 preguntas, para una sumatoria de 1.632 y solo 7 encuestas contaron con una regular regular.
J34: ACCIÓN FORMULADA
J35: N/A
J39: RESPONSABLE
J40: =E14 -> Dirección de Interacción Universitaria
C43: PERIODO DE EVALUACIÓN
C44: MES | D44: =IF(J23="MENSUAL","ENERO",IF(J23="TRIMESTRAL","MARZO",IF(J23="SEMESTRAL","JUNIO",IF(J23="ANUAL",YEAR(TODAY()),"")))) -> JUNIO | E44: =IF(J23="MENSUAL","FEBRERO",IF(J23="TRIMESTRAL","JUNIO",IF(J23="SEMESTRAL","DICIEMBRE",""))) -> DICIEMBRE | F44: =IF(J23="MENSUAL","MARZO",IF(J23="TRIMESTRAL","SEPTIEMBRE","")) ->  | G44: =IF(J23="MENSUAL","ABRIL",IF(J23="TRIMESTRAL","DICIEMBRE","")) ->  | H44: =IF(J23="MENSUAL","MAYO","") ->  | I44: =IF(J23="MENSUAL","JUNIO","") ->  | J44: =IF(J23="MENSUAL","JULIO","") ->  | K44: =IF(J23="MENSUAL","AGOSTO","") ->  | L44: =IF(J23="MENSUAL","SEPTIEMBRE","") ->  | M44: =IF(J23="MENSUAL","OCTUBRE","") ->  | N44: =IF(J23="MENSUAL","NOVIEMBRE","") ->  | O44: =IF(J23="MENSUAL","DICIEMBRE","") -> 
C45: =G18 -> (# Evaluaciones Calificadas ≥ 4) * 100 | D45: 91 | E45: 135
C46: =G19 -> # Total Evaluaciones | D46: 91 | E46: 142
C47: VALOR | D47: =IFERROR(IF($E$17=1,D45/D46,IF($E$17=2,D45,"")),"") -> 1 | E47: =IFERROR(IF($E$17=1,E45/E46,IF($E$17=2,E45,"")),"") -> 0.9507042254
C48: META PONDERADA | D48: =IF(AND(N23="ANUAL",J23="MENSUAL"),N17/12,IF(AND(N23="ANUAL",J23="TRIMESTRAL"),N17/4,IF(AND(N23="ANUAL",J23="SEMESTRAL"),N17/2,IF(AND(N23="ANUAL",J23="ANUAL"),N17,IF(AND(N23="SEMESTRAL",J23="MENSUAL"),N17/6,IF(AND(N23="SEMESTRAL",J23="TRIMESTRAL"),N17/2,IF(AND(N23="SEMESTRAL",J23="SEMESTRAL"),N17,IF(AND(N23="SEMESTRAL",J23="ANUAL"),"REVISAR FRECUENCIAS",IF(AND(N23="TRIMESTRAL",J23="MENSUAL"),N17/3,IF(AND(N23="TRIMESTRAL",J23="TRIMESTRAL"),N17,IF(AND(N23="TRIMESTRAL",J23="SEMESTRAL"),"REVISAR FRECUENCIAS",IF(AND(N23="TRIMESTRAL",J23="ANUAL"),"REVISAR FRECUENCIAS",IF(AND(N23="MENSUAL",J23="MENSUAL"),N17,IF(AND(N23="MENSUAL",J23="TRIMESTRAL"),"REVISAR FRECUENCIAS",IF(AND(N23="MENSUAL",J23="SEMESTRAL"),"REVISAR FRECUENCIAS",IF(AND(N23="MENSUAL",J23="ANUAL"),"REVISAR FRECUENCIAS","")))))))))))))))) -> 0.9 | E48: =IF(AND(N23="ANUAL",J23="MENSUAL"),N17/12+D48,IF(AND(N23="ANUAL",J23="TRIMESTRAL"),N17/4+D48,IF(AND(N23="ANUAL",J23="SEMESTRAL"),N17/2+D48,IF(AND(N23="SEMESTRAL",J23="MENSUAL"),N17/6+D48,IF(AND(N23="SEMESTRAL",J23="TRIMESTRAL"),N17/2+D48,IF(AND(N23="SEMESTRAL",J23="SEMESTRAL"),N17,IF(AND(N23="TRIMESTRAL",J23="MENSUAL"),N17/3+D48,IF(AND(N23="TRIMESTRAL",J23="TRIMESTRAL"),N17,IF(AND(N23="MENSUAL",J23="MENSUAL"),N17,""))))))))) -> 0.9 | F48: =IF(AND(N23="ANUAL",J23="MENSUAL"),N17/12+E48,IF(AND(N23="ANUAL",J23="TRIMESTRAL"),N17/4+E48,IF(AND(N23="SEMESTRAL",J23="MENSUAL"),N17/6+E48,IF(AND(N23="SEMESTRAL",J23="TRIMESTRAL"),N17/2,IF(AND(N23="TRIMESTRAL",J23="MENSUAL"),N17/3+E48,IF(AND(N23="TRIMESTRAL",J23="TRIMESTRAL"),N17,IF(AND(N23="MENSUAL",J23="MENSUAL"),N17,""))))))) ->  | G48: =IF(AND(N23="ANUAL",J23="MENSUAL"),N17/12+F48,IF(AND(N23="ANUAL",J23="TRIMESTRAL"),N17/4+F48,IF(AND(N23="SEMESTRAL",J23="MENSUAL"),N17/6+F48,IF(AND(N23="SEMESTRAL",J23="TRIMESTRAL"),N17/2+F48,IF(AND(N23="TRIMESTRAL",J23="MENSUAL"),N17/3,IF(AND(N23="TRIMESTRAL",J23="TRIMESTRAL"),N17,IF(AND(N23="MENSUAL",J23="MENSUAL"),N17,""))))))) ->  | H48: =IF(AND($N$23="ANUAL",$J$23="MENSUAL"),$N$17/12+G48,IF(AND(N23="SEMESTRAL",J23="MENSUAL"),N17/6+G48,IF(AND(N23="TRIMESTRAL",J23="MENSUAL"),N17/3+G48,IF(AND(N23="MENSUAL",J23="MENSUAL"),N17,"")))) ->  | I48: =IF(AND($N$23="ANUAL",$J$23="MENSUAL"),$N$17/12+H48,IF(AND(N23="SEMESTRAL",J23="MENSUAL"),N17/6+H48,IF(AND(N23="TRIMESTRAL",J23="MENSUAL"),N17/3+H48,IF(AND(N23="MENSUAL",J23="MENSUAL"),N17,"")))) ->  | J48: =IF(AND($N$23="ANUAL",$J$23="MENSUAL"),$N$17/12+I48,IF(AND(N23="SEMESTRAL",J23="MENSUAL"),N17/6,IF(AND(N23="TRIMESTRAL",J23="MENSUAL"),N17/3,IF(AND(N23="MENSUAL",J23="MENSUAL"),N17,"")))) ->  | K48: =IF(AND($N$23="ANUAL",$J$23="MENSUAL"),$N$17/12+J48,IF(AND(N23="SEMESTRAL",J23="MENSUAL"),N17/6+J48,IF(AND(N23="TRIMESTRAL",J23="MENSUAL"),N17/3+J48,IF(AND(N23="MENSUAL",J23="MENSUAL"),N17,"")))) ->  | L48: =IF(AND($N$23="ANUAL",$J$23="MENSUAL"),$N$17/12+K48,IF(AND(N23="SEMESTRAL",J23="MENSUAL"),N17/6+K48,IF(AND(N23="TRIMESTRAL",J23="MENSUAL"),N17/3+K48,IF(AND(N23="MENSUAL",J23="MENSUAL"),N17,"")))) ->  | M48: =IF(AND($N$23="ANUAL",$J$23="MENSUAL"),$N$17/12+L48,IF(AND(N23="SEMESTRAL",J23="MENSUAL"),N17/6+L48,IF(AND(N23="TRIMESTRAL",J23="MENSUAL"),N17/3,IF(AND(N23="MENSUAL",J23="MENSUAL"),N17,"")))) ->  | N48: =IF(AND($N$23="ANUAL",$J$23="MENSUAL"),$N$17/12+M48,IF(AND(N23="SEMESTRAL",J23="MENSUAL"),N17/6+M48,IF(AND(N23="TRIMESTRAL",J23="MENSUAL"),N17/3+M48,IF(AND(N23="MENSUAL",J23="MENSUAL"),N17,"")))) ->  | O48: =IF(AND($N$23="ANUAL",$J$23="MENSUAL"),$N$17/12+N48,IF(AND(N23="SEMESTRAL",J23="MENSUAL"),N17/6+N48,IF(AND(N23="TRIMESTRAL",J23="MENSUAL"),N17/3+N48,IF(AND(N23="MENSUAL",J23="MENSUAL"),N17,"")))) -> 
C50: NIVEL DE SEGREGACIÓN *
C51: UNIDAD SEGREGADA (Ej. Facultad, Programa Académico, Área) | G51: RESULTADO | K51: ANÁLISIS DE DATOS SEGREGADO
G69: Estratégico | J69: Eficacia
G70: Misional | J70: Eficiencia
G71: Apoyo | J71: Acreditación
G72: Seguimiento, Medición, Análisis y Evaluación | J72: Positiva
G73: Direccionamiento Estratégico | J73: Negativa
G74: Planeación Institucional | J74: Por Unidad Regional
G75: Proyectos Especiales y Relaciones Interinstitucionales | J75: Por Facultad
G76: Sistemas Integrados | J76: Por Programa Académico
G77: Autoevaluación y Acreditación | J77: Por área
G78: Comunicaciones | J78: Por Laboratorio
G79: Formación y Aprendizaje | J79: Otros
G80: Ciencia, Tecnología e Innovación | J80: No Aplica
G81: Interacción Social Universitaria
G82: Bienestar Universitario
G83: Admisiones y Registro
G84: Graduados
G85: Dialogando con el Mundo
G86: Talento Humano
G87: Jurídica
G88: Financiera
G89: Sistemas y Tecnología
G90: Bienes y Servicios
G91: Documental
G92: Apoyo Académico
G93: Control Interno
G94: Control Disciplinario
G95: Servicio de Atención al Ciudadano

Sheet MIU-2 (hidden)
B2: REGRESAR
E5: MACROPROCESO ESTRATÉGICO | M5: CÓDIGO: ESGr027
E6: PROCESO GESTIÓN SISTEMAS INTEGRADOS - CALIDAD | M6: VERSIÓN: 8
E7: MATRIZ DE MEDICIÓN Y SEGUIMIENTO A LOS PROCESOS DE GESTIÓN | M7: VIGENCIA: 2023-07-28
M8: PÁGINA: 3 de 7
C10: FICHA DE INDICADOR
C12: MACROPROCESO | E12: Misional | I12: NOMBRE DEL INDICADOR | K12: Satisfacción del estudiante frente al escenario de práctica o pasantía (PENDIENTE RESPONSABLE DE MEDICIÓN)
C13: PROCESO GESTIÓN | E13: Interacción Social Universitaria
C14: RESPONSABLE DE MEDICIÓN | E14: Dirección de Interacción Universitaria
C16: 1. COMPORTAMIENTO DE INDICADOR
C17: CLASIFICACIÓN DE LA MEDICIÓN | E17: 1 | H17: TIPO DE INDICADOR | J17: Eficacia | L17: META ANUAL | N17: 0.85
C18: FORMULA | E18: NUMERADOR | G18: (# Evaluaciones Calificadas ≥ 4) * 100 | L18: UNIDAD DE MEDIDA | N18: Porcentual
E19: DENOMINADOR | G19: # Total Evaluaciones
C20: TENDENCIA | E20: Positiva | H20: NIVEL DE SEGREGACIÓN * | J20: No Aplica | L20: ESCALA
L21: Deficiente | M21: Aceptable | N21: Bueno | O21: Excelente
L22: 0 - 59,9% | M22: 60% - 74,9% | N22: 75% - 84,9% | O22: 85% - 100%
C23: ORIGEN DE DATOS NUMERADOR | E23: MIUr065 cuyas calificaciones sean superiores a 4 | H23: FRECUENCIA DE LA MEDICIÓN | J23: SEMESTRAL | L23: FRECUENCIA DE RESULTADO | N23: SEMESTRAL
C24: ORIGEN DE DATOS DENOMINADOR | E24: Total MIUr065 recibidos
C26: RESULTADOS
J27: ANÁLISIS DE DATOS
J28: PRIMER SEMESTRE: SEGUNDO SEMESTRE:
J35: ACCIÓN FORMULADA
J36: PRIMER SEMESTRE: SEGUNDO SEMESTRE:
J41: RESPONSABLE
J42: =E14 -> Dirección de Interacción Universitaria
C45: PERIODO DE EVALUACIÓN
C46: MES | D46: =IF(J23="MENSUAL","ENERO",IF(J23="TRIMESTRAL","MARZO",IF(J23="SEMESTRAL","JUNIO",IF(J23="ANUAL",YEAR(TODAY()),"")))) -> JUNIO | E46: =IF(J23="MENSUAL","FEBRERO",IF(J23="TRIMESTRAL","JUNIO",IF(J23="SEMESTRAL","DICIEMBRE",""))) -> DICIEMBRE | F46: =IF(J23="MENSUAL","MARZO",IF(J23="TRIMESTRAL","SEPTIEMBRE","")) ->  | G46: =IF(J23="MENSUAL","ABRIL",IF(J23="TRIMESTRAL","DICIEMBRE","")) ->  | H46: =IF(J23="MENSUAL","MAYO","") ->  | I46: =IF(J23="MENSUAL","JUNIO","") ->  | J46: =IF(J23="MENSUAL","JULIO","") ->  | K46: =IF(J23="MENSUAL","AGOSTO","") ->  | L46: =IF(J23="MENSUAL","SEPTIEMBRE","") ->  | M46: =IF(J23="MENSUAL","OCTUBRE","") ->  | N46: =IF(J23="MENSUAL","NOVIEMBRE","") ->  | O46: =IF(J23="MENSUAL","DICIEMBRE","") -> 
C47: =G18 -> (# Evaluaciones Calificadas ≥ 4) * 100
C48: =G19 -> # Total Evaluaciones
C49: VALOR | D49: =IFERROR(IF($E$17=1,D47/D48,IF($E$17=2,D47,"")),"") ->  | E49: =IFERROR(IF($E$17=1,E47/E48,IF($E$17=2,E47,"")),"") -> 
C50: META PONDERADA | D50: =IF(AND(N23="ANUAL",J23="MENSUAL"),N17/12,IF(AND(N23="ANUAL",J23="TRIMESTRAL"),N17/4,IF(AND(N23="ANUAL",J23="SEMESTRAL"),N17/2,IF(AND(N23="ANUAL",J23="ANUAL"),N17,IF(AND(N23="SEMESTRAL",J23="MENSUAL"),N17/6,IF(AND(N23="SEMESTRAL",J23="TRIMESTRAL"),N17/2,IF(AND(N23="SEMESTRAL",J23="SEMESTRAL"),N17,IF(AND(N23="SEMESTRAL",J23="ANUAL"),"REVISAR FRECUENCIAS",IF(AND(N23="TRIMESTRAL",J23="MENSUAL"),N17/3,IF(AND(N23="TRIMESTRAL",J23="TRIMESTRAL"),N17,IF(AND(N23="TRIMESTRAL",J23="SEMESTRAL"),"REVISAR FRECUENCIAS",IF(AND(N23="TRIMESTRAL",J23="ANUAL"),"REVISAR FRECUENCIAS",IF(AND(N23="MENSUAL",J23="MENSUAL"),N17,IF(AND(N23="MENSUAL",J23="TRIMESTRAL"),"REVISAR FRECUENCIAS",IF(AND(N23="MENSUAL",J23="SEMESTRAL"),"REVISAR FRECUENCIAS",IF(AND(N23="MENSUAL",J23="ANUAL"),"REVISAR FRECUENCIAS","")))))))))))))))) -> 0.85 | E50: =IF(AND(N23="ANUAL",J23="MENSUAL"),N17/12+D50,IF(AND(N23="ANUAL",J23="TRIMESTRAL"),N17/4+D50,IF(AND(N23="ANUAL",J23="SEMESTRAL"),N17/2+D50,IF(AND(N23="SEMESTRAL",J23="MENSUAL"),N17/6+D50,IF(AND(N23="SEMESTRAL",J23="TRIMESTRAL"),N17/2+D50,IF(AND(N23="SEMESTRAL",J23="SEMESTRAL"),N17,IF(AND(N23="TRIMESTRAL",J23="MENSUAL"),N17/3+D50,IF(AND(N23="TRIMESTRAL",J23="TRIMESTRAL"),N17,IF(AND(N23="MENSUAL",J23="MENSUAL"),N17,""))))))))) -> 0.85 | F50: =IF(AND(N23="ANUAL",J23="MENSUAL"),N17/12+E50,IF(AND(N23="ANUAL",J23="TRIMESTRAL"),N17/4+E50,IF(AND(N23="SEMESTRAL",J23="MENSUAL"),N17/6+E50,IF(AND(N23="SEMESTRAL",J23="TRIMESTRAL"),N17/2,IF(AND(N23="TRIMESTRAL",J23="MENSUAL"),N17/3+E50,IF(AND(N23="TRIMESTRAL",J23="TRIMESTRAL"),N17,IF(AND(N23="MENSUAL",J23="MENSUAL"),N17,""))))))) ->  | G50: =IF(AND(N23="ANUAL",J23="MENSUAL"),N17/12+F50,IF(AND(N23="ANUAL",J23="TRIMESTRAL"),N17/4+F50,IF(AND(N23="SEMESTRAL",J23="MENSUAL"),N17/6+F50,IF(AND(N23="SEMESTRAL",J23="TRIMESTRAL"),N17/2+F50,IF(AND(N23="TRIMESTRAL",J23="MENSUAL"),N17/3,IF(AND(N23="TRIMESTRAL",J23="TRIMESTRAL"),N17,IF(AND(N23="MENSUAL",J23="MENSUAL"),N17,""))))))) ->  | H50: =IF(AND($N$23="ANUAL",$J$23="MENSUAL"),$N$17/12+G50,IF(AND(N23="SEMESTRAL",J23="MENSUAL"),N17/6+G50,IF(AND(N23="TRIMESTRAL",J23="MENSUAL"),N17/3+G50,IF(AND(N23="MENSUAL",J23="MENSUAL"),N17,"")))) ->  | I50: =IF(AND($N$23="ANUAL",$J$23="MENSUAL"),$N$17/12+H50,IF(AND(N23="SEMESTRAL",J23="MENSUAL"),N17/6+H50,IF(AND(N23="TRIMESTRAL",J23="MENSUAL"),N17/3+H50,IF(AND(N23="MENSUAL",J23="MENSUAL"),N17,"")))) ->  | J50: =IF(AND($N$23="ANUAL",$J$23="MENSUAL"),$N$17/12+I50,IF(AND(N23="SEMESTRAL",J23="MENSUAL"),N17/6,IF(AND(N23="TRIMESTRAL",J23="MENSUAL"),N17/3,IF(AND(N23="MENSUAL",J23="MENSUAL"),N17,"")))) ->  | K50: =IF(AND($N$23="ANUAL",$J$23="MENSUAL"),$N$17/12+J50,IF(AND(N23="SEMESTRAL",J23="MENSUAL"),N17/6+J50,IF(AND(N23="TRIMESTRAL",J23="MENSUAL"),N17/3+J50,IF(AND(N23="MENSUAL",J23="MENSUAL"),N17,"")))) ->  | L50: =IF(AND($N$23="ANUAL",$J$23="MENSUAL"),$N$17/12+K50,IF(AND(N23="SEMESTRAL",J23="MENSUAL"),N17/6+K50,IF(AND(N23="TRIMESTRAL",J23="MENSUAL"),N17/3+K50,IF(AND(N23="MENSUAL",J23="MENSUAL"),N17,"")))) ->  | M50: =IF(AND($N$23="ANUAL",$J$23="MENSUAL"),$N$17/12+L50,IF(AND(N23="SEMESTRAL",J23="MENSUAL"),N17/6+L50,IF(AND(N23="TRIMESTRAL",J23="MENSUAL"),N17/3,IF(AND(N23="MENSUAL",J23="MENSUAL"),N17,"")))) ->  | N50: =IF(AND($N$23="ANUAL",$J$23="MENSUAL"),$N$17/12+M50,IF(AND(N23="SEMESTRAL",J23="MENSUAL"),N17/6+M50,IF(AND(N23="TRIMESTRAL",J23="MENSUAL"),N17/3+M50,IF(AND(N23="MENSUAL",J23="MENSUAL"),N17,"")))) ->  | O50: =IF(AND($N$23="ANUAL",$J$23="MENSUAL"),$N$17/12+N50,IF(AND(N23="SEMESTRAL",J23="MENSUAL"),N17/6+N50,IF(AND(N23="TRIMESTRAL",J23="MENSUAL"),N17/3+N50,IF(AND(N23="MENSUAL",J23="MENSUAL"),N17,"")))) -> 
C52: NIVEL DE SEGREGACIÓN *
C53: UNIDAD SEGREGADA (Ej. Facultad, Programa Académico, Área) | G53: RESULTADO | K53: ANÁLISIS DE DATOS SEGREGADO
G70: Estratégico | J70: Eficacia
G71: Misional | J71: Eficiencia
G72: Apoyo | J72: Acreditación
G73: Seguimiento, Medición, Análisis y Evaluación | J73: Positiva
G74: Direccionamiento Estratégico | J74: Negativa
G75: Planeación Institucional | J75: Por Unidad Regional
G76: Proyectos Especiales y Relaciones Interinstitucionales | J76: Por Facultad
G77: Sistemas Integrados | J77: Por Programa Académico
G78: Autoevaluación y Acreditación | J78: Por área
G79: Comunicaciones | J79: Por Laboratorio
G80: Formación y Aprendizaje | J80: Otros
G81: Ciencia, Tecnología e Innovación | J81: No Aplica
G82: Interacción Social Universitaria
G83: Bienestar Universitario
G84: Admisiones y Registro
G85: Graduados
G86: Dialogando con el Mundo
G87: Talento Humano
G88: Jurídica
G89: Financiera
G90: Sistemas y Tecnología
G91: Bienes y Servicios
G92: Documental
G93: Apoyo Académico
G94: Control Interno
G95: Control Disciplinario
G96: Servicio de Atención al Ciudadano

Sheet MIU-3 (hidden)
B2: REGRESAR
E5: MACROPROCESO ESTRATÉGICO | M5: CÓDIGO: ESGr027
E6: PROCESO GESTIÓN SISTEMAS INTEGRADOS - CALIDAD | M6: VERSIÓN: 8
E7: MATRIZ DE MEDICIÓN Y SEGUIMIENTO A LOS PROCESOS DE GESTIÓN | M7: VIGENCIA: 2023-07-28
M8: PÁGINA: 4 de 7
C10: FICHA DE INDICADOR
C12: MACROPROCESO | E12: Misional | I12: NOMBRE DEL INDICADOR | K12: Satisfacción de la Institución o Empresa hacia el desempeño de la práctica o pasantía (PENDIENTE RESPONSABLE DE MEDICIÓN)
C13: PROCESO GESTIÓN | E13: Interacción Social Universitaria
C14: RESPONSABLE DE MEDICIÓN | E14: Dirección de Interacción Universitaria
C16: 1. COMPORTAMIENTO DE INDICADOR
C17: CLASIFICACIÓN DE LA MEDICIÓN | E17: 1 | H17: TIPO DE INDICADOR | J17: Eficacia | L17: META ANUAL | N17: 0.95
C18: FORMULA | E18: NUMERADOR | G18: (# Evaluaciones Calificadas ≥ 4) * 100 | L18: UNIDAD DE MEDIDA | N18: Porcentual
E19: DENOMINADOR | G19: # Total Evaluaciones
C20: TENDENCIA | E20: Positiva | H20: NIVEL DE SEGREGACIÓN * | J20: No Aplica | L20: ESCALA
L21: Deficiente | M21: Aceptable | N21: Bueno | O21: Excelente
L22: 0 - 59,9% | M22: 60% - 79,9% | N22: 80% - 94,9% | O22: 95% - 100%
C23: ORIGEN DE DATOS NUMERADOR | E23: MIUr037 cuyas calificaciones sean superiores a 4 | H23: FRECUENCIA DE LA MEDICIÓN | J23: SEMESTRAL | L23: FRECUENCIA DE RESULTADO | N23: SEMESTRAL
C24: ORIGEN DE DATOS DENOMINADOR | E24: Total MIUr037 recibidos
C26: RESULTADOS
J27: ANÁLISIS DE DATOS
J28: PRIMER SEMESTRE: Se evidencia el no cumplimiento de la meta establecida del 95%, esto debido a que falta compromiso al registrar estas evaluaciones por parte de las instituciones o empresas. SEGUNDO SEMESTRE: Se evidencia el no cumplimiento de la meta establecida del 95%, ya que quedo el 5% por debajo, esto debido a que falta compromiso al registrar estas evaluaciones por parte de las instituciones o empresas.
J34: ACCIÓN FORMULADA
J35: PRIMER SEMESTRE: Desde Interacción Social Universitaria se realizará seguimiento de las prácticas y pasantías llevadas a cabo mediante llamadas a los pasantes y/o practicantes, correos electrónicos, etc. Así mismo, se propone trasladar este indicador a responsabilidad de las Facultades, ya que son los programas académicos quienes son los actores principales de las prácticas y/o pasantías de sus estudiantes y de las empresas donde estos realizan estas actividades. SEGUNDO SEMESTRE: Desde Interacción Social Universitaria se realizará seguimiento de las prácticas y pasantías llevadas a cabo mediante llamadas a los pasantes y/o practicantes, correos electrónicos, etc. Así mismo, se propone trasladar este indicador a responsabilidad de las Facultades, ya que son los programas académicos quienes son los actores principales de las prácticas y/o pasantías de sus estudiantes y de las empresas donde estos realizan estas actividades.
J40: RESPONSABLE
J41: =E14 -> Dirección de Interacción Universitaria
C44: PERIODO DE EVALUACIÓN
C45: MES | D45: =IF(J23="MENSUAL","ENERO",IF(J23="TRIMESTRAL","MARZO",IF(J23="SEMESTRAL","JUNIO",IF(J23="ANUAL",YEAR(TODAY()),"")))) -> JUNIO | E45: =IF(J23="MENSUAL","FEBRERO",IF(J23="TRIMESTRAL","JUNIO",IF(J23="SEMESTRAL","DICIEMBRE",""))) -> DICIEMBRE | F45: =IF(J23="MENSUAL","MARZO",IF(J23="TRIMESTRAL","SEPTIEMBRE","")) ->  | G45: =IF(J23="MENSUAL","ABRIL",IF(J23="TRIMESTRAL","DICIEMBRE","")) ->  | H45: =IF(J23="MENSUAL","MAYO","") ->  | I45: =IF(J23="MENSUAL","JUNIO","") ->  | J45: =IF(J23="MENSUAL","JULIO","") ->  | K45: =IF(J23="MENSUAL","AGOSTO","") ->  | L45: =IF(J23="MENSUAL","SEPTIEMBRE","") ->  | M45: =IF(J23="MENSUAL","OCTUBRE","") ->  | N45: =IF(J23="MENSUAL","NOVIEMBRE","") ->  | O45: =IF(J23="MENSUAL","DICIEMBRE","") -> 
C46: =G18 -> (# Evaluaciones Calificadas ≥ 4) * 100 | D46: 309 | E46: 210
C47: =G19 -> # Total Evaluaciones | D47: 349 | E47: 233
C48: VALOR | D48: =IFERROR(IF($E$17=1,D46/D47,IF($E$17=2,D46,"")),"") -> 0.8853868195 | E48: =IFERROR(IF($E$17=1,E46/E47,IF($E$17=2,E46,"")),"") -> 0.9012875536
C49: META PONDERADA | D49: =IF(AND(N23="ANUAL",J23="MENSUAL"),N17/12,IF(AND(N23="ANUAL",J23="TRIMESTRAL"),N17/4,IF(AND(N23="ANUAL",J23="SEMESTRAL"),N17/2,IF(AND(N23="ANUAL",J23="ANUAL"),N17,IF(AND(N23="SEMESTRAL",J23="MENSUAL"),N17/6,IF(AND(N23="SEMESTRAL",J23="TRIMESTRAL"),N17/2,IF(AND(N23="SEMESTRAL",J23="SEMESTRAL"),N17,IF(AND(N23="SEMESTRAL",J23="ANUAL"),"REVISAR FRECUENCIAS",IF(AND(N23="TRIMESTRAL",J23="MENSUAL"),N17/3,IF(AND(N23="TRIMESTRAL",J23="TRIMESTRAL"),N17,IF(AND(N23="TRIMESTRAL",J23="SEMESTRAL"),"REVISAR FRECUENCIAS",IF(AND(N23="TRIMESTRAL",J23="ANUAL"),"REVISAR FRECUENCIAS",IF(AND(N23="MENSUAL",J23="MENSUAL"),N17,IF(AND(N23="MENSUAL",J23="TRIMESTRAL"),"REVISAR FRECUENCIAS",IF(AND(N23="MENSUAL",J23="SEMESTRAL"),"REVISAR FRECUENCIAS",IF(AND(N23="MENSUAL",J23="ANUAL"),"REVISAR FRECUENCIAS","")))))))))))))))) -> 0.95 | E49: =IF(AND(N23="ANUAL",J23="MENSUAL"),N17/12+D49,IF(AND(N23="ANUAL",J23="TRIMESTRAL"),N17/4+D49,IF(AND(N23="ANUAL",J23="SEMESTRAL"),N17/2+D49,IF(AND(N23="SEMESTRAL",J23="MENSUAL"),N17/6+D49,IF(AND(N23="SEMESTRAL",J23="TRIMESTRAL"),N17/2+D49,IF(AND(N23="SEMESTRAL",J23="SEMESTRAL"),N17,IF(AND(N23="TRIMESTRAL",J23="MENSUAL"),N17/3+D49,IF(AND(N23="TRIMESTRAL",J23="TRIMESTRAL"),N17,IF(AND(N23="MENSUAL",J23="MENSUAL"),N17,""))))))))) -> 0.95 | F49: =IF(AND(N23="ANUAL",J23="MENSUAL"),N17/12+E49,IF(AND(N23="ANUAL",J23="TRIMESTRAL"),N17/4+E49,IF(AND(N23="SEMESTRAL",J23="MENSUAL"),N17/6+E49,IF(AND(N23="SEMESTRAL",J23="TRIMESTRAL"),N17/2,IF(AND(N23="TRIMESTRAL",J23="MENSUAL"),N17/3+E49,IF(AND(N23="TRIMESTRAL",J23="TRIMESTRAL"),N17,IF(AND(N23="MENSUAL",J23="MENSUAL"),N17,""))))))) ->  | G49: =IF(AND(N23="ANUAL",J23="MENSUAL"),N17/12+F49,IF(AND(N23="ANUAL",J23="TRIMESTRAL"),N17/4+F49,IF(AND(N23="SEMESTRAL",J23="MENSUAL"),N17/6+F49,IF(AND(N23="SEMESTRAL",J23="TRIMESTRAL"),N17/2+F49,IF(AND(N23="TRIMESTRAL",J23="MENSUAL"),N17/3,IF(AND(N23="TRIMESTRAL",J23="TRIMESTRAL"),N17,IF(AND(N23="MENSUAL",J23="MENSUAL"),N17,""))))))) ->  | H49: =IF(AND($N$23="ANUAL",$J$23="MENSUAL"),$N$17/12+G49,IF(AND(N23="SEMESTRAL",J23="MENSUAL"),N17/6+G49,IF(AND(N23="TRIMESTRAL",J23="MENSUAL"),N17/3+G49,IF(AND(N23="MENSUAL",J23="MENSUAL"),N17,"")))) ->  | I49: =IF(AND($N$23="ANUAL",$J$23="MENSUAL"),$N$17/12+H49,IF(AND(N23="SEMESTRAL",J23="MENSUAL"),N17/6+H49,IF(AND(N23="TRIMESTRAL",J23="MENSUAL"),N17/3+H49,IF(AND(N23="MENSUAL",J23="MENSUAL"),N17,"")))) ->  | J49: =IF(AND($N$23="ANUAL",$J$23="MENSUAL"),$N$17/12+I49,IF(AND(N23="SEMESTRAL",J23="MENSUAL"),N17/6,IF(AND(N23="TRIMESTRAL",J23="MENSUAL"),N17/3,IF(AND(N23="MENSUAL",J23="MENSUAL"),N17,"")))) ->  | K49: =IF(AND($N$23="ANUAL",$J$23="MENSUAL"),$N$17/12+J49,IF(AND(N23="SEMESTRAL",J23="MENSUAL"),N17/6+J49,IF(AND(N23="TRIMESTRAL",J23="MENSUAL"),N17/3+J49,IF(AND(N23="MENSUAL",J23="MENSUAL"),N17,"")))) ->  | L49: =IF(AND($N$23="ANUAL",$J$23="MENSUAL"),$N$17/12+K49,IF(AND(N23="SEMESTRAL",J23="MENSUAL"),N17/6+K49,IF(AND(N23="TRIMESTRAL",J23="MENSUAL"),N17/3+K49,IF(AND(N23="MENSUAL",J23="MENSUAL"),N17,"")))) ->  | M49: =IF(AND($N$23="ANUAL",$J$23="MENSUAL"),$N$17/12+L49,IF(AND(N23="SEMESTRAL",J23="MENSUAL"),N17/6+L49,IF(AND(N23="TRIMESTRAL",J23="MENSUAL"),N17/3,IF(AND(N23="MENSUAL",J23="MENSUAL"),N17,"")))) ->  | N49: =IF(AND($N$23="ANUAL",$J$23="MENSUAL"),$N$17/12+M49,IF(AND(N23="SEMESTRAL",J23="MENSUAL"),N17/6+M49,IF(AND(N23="TRIMESTRAL",J23="MENSUAL"),N17/3+M49,IF(AND(N23="MENSUAL",J23="MENSUAL"),N17,"")))) ->  | O49: =IF(AND($N$23="ANUAL",$J$23="MENSUAL"),$N$17/12+N49,IF(AND(N23="SEMESTRAL",J23="MENSUAL"),N17/6+N49,IF(AND(N23="TRIMESTRAL",J23="MENSUAL"),N17/3+N49,IF(AND(N23="MENSUAL",J23="MENSUAL"),N17,"")))) -> 
C51: NIVEL DE SEGREGACIÓN *
C52: UNIDAD SEGREGADA (Ej. Facultad, Programa Académico, Área) | G52: RESULTADO | K52: ANÁLISIS DE DATOS SEGREGADO
G70: Estratégico | J70: Eficacia
G71: Misional | J71: Eficiencia
G72: Apoyo | J72: Acreditación
G73: Seguimiento, Medición, Análisis y Evaluación | J73: Positiva
G74: Direccionamiento Estratégico | J74: Negativa
G75: Planeación Institucional | J75: Por Unidad Regional
G76: Proyectos Especiales y Relaciones Interinstitucionales | J76: Por Facultad
G77: Sistemas Integrados | J77: Por Programa Académico
G78: Autoevaluación y Acreditación | J78: Por área
G79: Comunicaciones | J79: Por Laboratorio
G80: Formación y Aprendizaje | J80: Otros
G81: Ciencia, Tecnología e Innovación | J81: No Aplica
G82: Interacción Social Universitaria
G83: Bienestar Universitario
G84: Admisiones y Registro
G85: Graduados
G86: Dialogando con el Mundo
G87: Talento Humano
G88: Jurídica
G89: Financiera
G90: Sistemas y Tecnología
G91: Bienes y Servicios
G92: Documental
G93: Apoyo Académico
G94: Control Interno
G95: Control Disciplinario
G96: Servicio de Atención al Ciudadano

Sheet MIU-4
B2: REGRESAR
E5: MACROPROCESO ESTRATÉGICO | M5: CÓDIGO: ESGr027
E6: PROCESO GESTIÓN SISTEMAS INTEGRADOS - CALIDAD | M6: VERSIÓN: 8
E7: MATRIZ DE MEDICIÓN Y SEGUIMIENTO A LOS PROCESOS DE GESTIÓN | M7: VIGENCIA: 2023-07-28
M8: PÁGINA: 5 de 7
C10: FICHA DE INDICADOR
C12: MACROPROCESO | E12: Misional | I12: NOMBRE DEL INDICADOR | K12: Evaluación de las actividades de Proyección Social
C13: PROCESO GESTIÓN | E13: Interacción Social Universitaria
C14: RESPONSABLE DE MEDICIÓN | E14: Dirección de Interacción Universitaria
C16: 1. COMPORTAMIENTO DE INDICADOR
C17: CLASIFICACIÓN DE LA MEDICIÓN | E17: 1 | H17: TIPO DE INDICADOR | J17: Eficacia | L17: META ANUAL | N17: 0.95
C18: FORMULA | E18: NUMERADOR | G18: (# Evaluaciones Calificadas ≥ 4) * 100 | L18: UNIDAD DE MEDIDA | N18: Porcentual
E19: DENOMINADOR | G19: # Total Evaluaciones
C20: TENDENCIA | E20: Positiva | H20: NIVEL DE SEGREGACIÓN * | J20: No Aplica | L20: ESCALA
L21: Deficiente | M21: Aceptable | N21: Bueno | O21: Excelente
L22: 0 - 59,9% | M22: 60% - 89,9% | N22: 90% - 94,9% | O22: 95% - 100%
C23: ORIGEN DE DATOS NUMERADOR | E23: MIUr015 de los eventos realizados en el semestre | H23: FRECUENCIA DE LA MEDICIÓN | J23: SEMESTRAL | L23: FRECUENCIA DE RESULTADO | N23: SEMESTRAL
C24: ORIGEN DE DATOS DENOMINADOR | E24: Total MIUr015 recibidos
C26: RESULTADOS
J27: ANÁLISIS DE DATOS
J28: PRIMER SEMESTRE 2024.1: Realizado el análisis de las 141 evaluaciones en las diferentes actividades llevadas a cabo durante el primer periodo académico 2024, se evidencia que las acciones formativas tales como cursos, diplomados, congresos y seminarios realizados tuvierón gran acogida por parte de los participantes, teniendo en cuenta que de las 141 evaluaciones, 134 obtuvierón una calificación igual o mayor a 4. por ende se cumple el indicador. SEGUNDO SEMESTRE 2024.2: Revisando las 23 evaluaciones en las diferentes actividades, se evidencia que las acciones formativas tales como cursos, diplomados, congresos y seminarios realizados tuvierón gran acogida por parte de los participantes, teniendo en cuenta que de las preguntas evaluadas, obtuvierón una calificación igual o mayor a (4) buena, además lograron la calificación de (5) en categoria excelente, por ende se cumple el indicador con un 96%. Es decir, el total de evaluaciones (23), obtuvierón una calificación igual o mayor a (4) Buena, lograron 59 preguntas y con calificación (5) Excelente se lograron 195 preguntas, para una sumatoria de 254 preguntas y solo 1 encuestas con una (1) respuesta con calificación regular.
J34: ACCIÓN FORMULADA
J35: N/A
J40: RESPONSABLE
J41: =E14 -> Dirección de Interacción Universitaria
C44: PERIODO DE EVALUACIÓN
C45: MES | D45: =IF(J23="MENSUAL","ENERO",IF(J23="TRIMESTRAL","MARZO",IF(J23="SEMESTRAL","JUNIO",IF(J23="ANUAL",YEAR(TODAY()),"")))) -> JUNIO | E45: =IF(J23="MENSUAL","FEBRERO",IF(J23="TRIMESTRAL","JUNIO",IF(J23="SEMESTRAL","DICIEMBRE",""))) -> DICIEMBRE | F45: =IF(J23="MENSUAL","MARZO",IF(J23="TRIMESTRAL","SEPTIEMBRE","")) ->  | G45: =IF(J23="MENSUAL","ABRIL",IF(J23="TRIMESTRAL","DICIEMBRE","")) ->  | H45: =IF(J23="MENSUAL","MAYO","") ->  | I45: =IF(J23="MENSUAL","JUNIO","") ->  | J45: =IF(J23="MENSUAL","JULIO","") ->  | K45: =IF(J23="MENSUAL","AGOSTO","") ->  | L45: =IF(J23="MENSUAL","SEPTIEMBRE","") ->  | M45: =IF(J23="MENSUAL","OCTUBRE","") ->  | N45: =IF(J23="MENSUAL","NOVIEMBRE","") ->  | O45: =IF(J23="MENSUAL","DICIEMBRE","") -> 
C46: =G18 -> (# Evaluaciones Calificadas ≥ 4) * 100 | D46: 134 | E46: 22
C47: =G19 -> # Total Evaluaciones | D47: 141 | E47: 23
C48: VALOR | D48: =IFERROR(IF($E$17=1,D46/D47,IF($E$17=2,D46,"")),"") -> 0.9503546099 | E48: =IFERROR(IF($E$17=1,E46/E47,IF($E$17=2,E46,"")),"") -> 0.9565217391
C49: META PONDERADA | D49: =IF(AND(N23="ANUAL",J23="MENSUAL"),N17/12,IF(AND(N23="ANUAL",J23="TRIMESTRAL"),N17/4,IF(AND(N23="ANUAL",J23="SEMESTRAL"),N17/2,IF(AND(N23="ANUAL",J23="ANUAL"),N17,IF(AND(N23="SEMESTRAL",J23="MENSUAL"),N17/6,IF(AND(N23="SEMESTRAL",J23="TRIMESTRAL"),N17/2,IF(AND(N23="SEMESTRAL",J23="SEMESTRAL"),N17,IF(AND(N23="SEMESTRAL",J23="ANUAL"),"REVISAR FRECUENCIAS",IF(AND(N23="TRIMESTRAL",J23="MENSUAL"),N17/3,IF(AND(N23="TRIMESTRAL",J23="TRIMESTRAL"),N17,IF(AND(N23="TRIMESTRAL",J23="SEMESTRAL"),"REVISAR FRECUENCIAS",IF(AND(N23="TRIMESTRAL",J23="ANUAL"),"REVISAR FRECUENCIAS",IF(AND(N23="MENSUAL",J23="MENSUAL"),N17,IF(AND(N23="MENSUAL",J23="TRIMESTRAL"),"REVISAR FRECUENCIAS",IF(AND(N23="MENSUAL",J23="SEMESTRAL"),"REVISAR FRECUENCIAS",IF(AND(N23="MENSUAL",J23="ANUAL"),"REVISAR FRECUENCIAS","")))))))))))))))) -> 0.95 | E49: =IF(AND(N23="ANUAL",J23="MENSUAL"),N17/12+D49,IF(AND(N23="ANUAL",J23="TRIMESTRAL"),N17/4+D49,IF(AND(N23="ANUAL",J23="SEMESTRAL"),N17/2+D49,IF(AND(N23="SEMESTRAL",J23="MENSUAL"),N17/6+D49,IF(AND(N23="SEMESTRAL",J23="TRIMESTRAL"),N17/2+D49,IF(AND(N23="SEMESTRAL",J23="SEMESTRAL"),N17,IF(AND(N23="TRIMESTRAL",J23="MENSUAL"),N17/3+D49,IF(AND(N23="TRIMESTRAL",J23="TRIMESTRAL"),N17,IF(AND(N23="MENSUAL",J23="MENSUAL"),N17,""))))))))) -> 0.95 | F49: =IF(AND(N23="ANUAL",J23="MENSUAL"),N17/12+E49,IF(AND(N23="ANUAL",J23="TRIMESTRAL"),N17/4+E49,IF(AND(N23="SEMESTRAL",J23="MENSUAL"),N17/6+E49,IF(AND(N23="SEMESTRAL",J23="TRIMESTRAL"),N17/2,IF(AND(N23="TRIMESTRAL",J23="MENSUAL"),N17/3+E49,IF(AND(N23="TRIMESTRAL",J23="TRIMESTRAL"),N17,IF(AND(N23="MENSUAL",J23="MENSUAL"),N17,""))))))) ->  | G49: =IF(AND(N23="ANUAL",J23="MENSUAL"),N17/12+F49,IF(AND(N23="ANUAL",J23="TRIMESTRAL"),N17/4+F49,IF(AND(N23="SEMESTRAL",J23="MENSUAL"),N17/6+F49,IF(AND(N23="SEMESTRAL",J23="TRIMESTRAL"),N17/2+F49,IF(AND(N23="TRIMESTRAL",J23="MENSUAL"),N17/3,IF(AND(N23="TRIMESTRAL",J23="TRIMESTRAL"),N17,IF(AND(N23="MENSUAL",J23="MENSUAL"),N17,""))))))) ->  | H49: =IF(AND($N$23="ANUAL",$J$23="MENSUAL"),$N$17/12+G49,IF(AND(N23="SEMESTRAL",J23="MENSUAL"),N17/6+G49,IF(AND(N23="TRIMESTRAL",J23="MENSUAL"),N17/3+G49,IF(AND(N23="MENSUAL",J23="MENSUAL"),N17,"")))) ->  | I49: =IF(AND($N$23="ANUAL",$J$23="MENSUAL"),$N$17/12+H49,IF(AND(N23="SEMESTRAL",J23="MENSUAL"),N17/6+H49,IF(AND(N23="TRIMESTRAL",J23="MENSUAL"),N17/3+H49,IF(AND(N23="MENSUAL",J23="MENSUAL"),N17,"")))) ->  | J49: =IF(AND($N$23="ANUAL",$J$23="MENSUAL"),$N$17/12+I49,IF(AND(N23="SEMESTRAL",J23="MENSUAL"),N17/6,IF(AND(N23="TRIMESTRAL",J23="MENSUAL"),N17/3,IF(AND(N23="MENSUAL",J23="MENSUAL"),N17,"")))) ->  | K49: =IF(AND($N$23="ANUAL",$J$23="MENSUAL"),$N$17/12+J49,IF(AND(N23="SEMESTRAL",J23="MENSUAL"),N17/6+J49,IF(AND(N23="TRIMESTRAL",J23="MENSUAL"),N17/3+J49,IF(AND(N23="MENSUAL",J23="MENSUAL"),N17,"")))) ->  | L49: =IF(AND($N$23="ANUAL",$J$23="MENSUAL"),$N$17/12+K49,IF(AND(N23="SEMESTRAL",J23="MENSUAL"),N17/6+K49,IF(AND(N23="TRIMESTRAL",J23="MENSUAL"),N17/3+K49,IF(AND(N23="MENSUAL",J23="MENSUAL"),N17,"")))) ->  | M49: =IF(AND($N$23="ANUAL",$J$23="MENSUAL"),$N$17/12+L49,IF(AND(N23="SEMESTRAL",J23="MENSUAL"),N17/6+L49,IF(AND(N23="TRIMESTRAL",J23="MENSUAL"),N17/3,IF(AND(N23="MENSUAL",J23="MENSUAL"),N17,"")))) ->  | N49: =IF(AND($N$23="ANUAL",$J$23="MENSUAL"),$N$17/12+M49,IF(AND(N23="SEMESTRAL",J23="MENSUAL"),N17/6+M49,IF(AND(N23="TRIMESTRAL",J23="MENSUAL"),N17/3+M49,IF(AND(N23="MENSUAL",J23="MENSUAL"),N17,"")))) ->  | O49: =IF(AND($N$23="ANUAL",$J$23="MENSUAL"),$N$17/12+N49,IF(AND(N23="SEMESTRAL",J23="MENSUAL"),N17/6+N49,IF(AND(N23="TRIMESTRAL",J23="MENSUAL"),N17/3+N49,IF(AND(N23="MENSUAL",J23="MENSUAL"),N17,"")))) -> 
C51: NIVEL DE SEGREGACIÓN *
C52: UNIDAD SEGREGADA (Ej. Facultad, Programa Académico, Área) | G52: RESULTADO | K52: ANÁLISIS DE DATOS SEGREGADO
G71: Estratégico | J71: Eficacia
G72: Misional | J72: Eficiencia
G73: Apoyo | J73: Acreditación
G74: Seguimiento, Medición, Análisis y Evaluación | J74: Positiva
G75: Direccionamiento Estratégico | J75: Negativa
G76: Planeación Institucional | J76: Por Unidad Regional
G77: Proyectos Especiales y Relaciones Interinstitucionales | J77: Por Facultad
G78: Sistemas Integrados | J78: Por Programa Académico
G79: Autoevaluación y Acreditación | J79: Por área
G80: Comunicaciones | J80: Por Laboratorio
G81: Formación y Aprendizaje | J81: Otros
G82: Ciencia, Tecnología e Innovación | J82: No Aplica
G83: Interacción Social Universitaria
G84: Bienestar Universitario
G85: Admisiones y Registro
G86: Graduados
G87: Dialogando con el Mundo
G88: Talento Humano
G89: Jurídica
G90: Financiera
G91: Sistemas y Tecnología
G92: Bienes y Servicios
G93: Documental
G94: Apoyo Académico
G95: Control Interno
G96: Control Disciplinario
G97: Servicio de Atención al Ciudadano

Sheet MIU-6 en construcción (hidden)
B2: REGRESAR
E5: MACROPROCESO ESTRATÉGICO | M5: CÓDIGO: ESGr027
E6: PROCESO GESTIÓN SISTEMAS INTEGRADOS | M6: VERSIÓN: 7
E7: MATRIZ DE MEDICIÓN Y SEGUIMIENTO A LOS PROCESOS DE GESTIÓN | M7: VIGENCIA: 2020-03-31
M8: PÁGINA: 1 de 1
C10: FICHA DE INDICADOR
C12: MACROPROCESO | E12: Misional | I12: NOMBRE DEL INDICADOR | K12: Satisfacción de los beneficiarios de los proyectos por Interacción Social
C13: PROCESO GESTIÓN | E13: Interacción Social Universitaria
C14: RESPONSABLE DE MEDICIÓN | E14: Dirección de Interacción Universitaria
C16: 1. COMPORTAMIENTO DE INDICADOR
C17: CLASIFICACIÓN DE LA MEDICIÓN | E17: 1 | H17: TIPO DE INDICADOR | J17: Eficacia | L17: META ANUAL | N17: 0.9
C18: FORMULA | E18: NUMERADOR | G18: (# Evaluaciones Calificadas ≥ 4) * 100 | L18: UNIDAD DE MEDIDA | N18: Porcentual
E19: DENOMINADOR | G19: # Total Evaluaciones
C20: TENDENCIA | E20: Positiva | H20: NIVEL DE SEGREGACIÓN * | J20: No Aplica | L20: ESCALA
L21: Deficiente | M21: Aceptable | N21: Bueno | O21: Excelente
L22: 0 - 59,9% | M22: 60% - 89% | N22: 90% - 95% | O22: 96% - 100%
C23: ORIGEN DE DATOS NUMERADOR | E23: MIUr015 de los eventos realizados en el semestre | H23: FRECUENCIA DE LA MEDICIÓN | J23: SEMESTRAL | L23: FRECUENCIA DE RESULTADO | N23: SEMESTRAL
C24: ORIGEN DE DATOS DENOMINADOR | E24: Total MIUr015 recibidos
C26: RESULTADOS
J27: ANÁLISIS DE DATOS
J34: ACCIÓN FORMULADA
J40: RESPONSABLE
J41: =E14 -> Dirección de Interacción Universitaria
C44: PERIODO DE EVALUACIÓN
C45: MES | D45: =IF(J23="MENSUAL","ENERO",IF(J23="TRIMESTRAL","MARZO",IF(J23="SEMESTRAL","JUNIO",IF(J23="ANUAL",YEAR(TODAY()),"")))) -> JUNIO | E45: =IF(J23="MENSUAL","FEBRERO",IF(J23="TRIMESTRAL","JUNIO",IF(J23="SEMESTRAL","DICIEMBRE",""))) -> DICIEMBRE | F45: =IF(J23="MENSUAL","MARZO",IF(J23="TRIMESTRAL","SEPTIEMBRE","")) ->  | G45: =IF(J23="MENSUAL","ABRIL",IF(J23="TRIMESTRAL","DICIEMBRE","")) ->  | H45: =IF(J23="MENSUAL","MAYO","") ->  | I45: =IF(J23="MENSUAL","JUNIO","") ->  | J45: =IF(J23="MENSUAL","JULIO","") ->  | K45: =IF(J23="MENSUAL","AGOSTO","") ->  | L45: =IF(J23="MENSUAL","SEPTIEMBRE","") ->  | M45: =IF(J23="MENSUAL","OCTUBRE","") ->  | N45: =IF(J23="MENSUAL","NOVIEMBRE","") ->  | O45: =IF(J23="MENSUAL","DICIEMBRE","") -> 
C46: =G18 -> (# Evaluaciones Calificadas ≥ 4) * 100
C47: =G19 -> # Total Evaluaciones
C48: VALOR | D48: =IFERROR(IF($E$17=1,D46/D47,IF($E$17=2,D46,"")),"") ->  | E48: =IFERROR(IF($E$17=1,E46/E47,IF($E$17=2,E46,"")),"") -> 
C49: META PONDERADA | D49: =IF(AND(N23="ANUAL",J23="MENSUAL"),N17/12,IF(AND(N23="ANUAL",J23="TRIMESTRAL"),N17/4,IF(AND(N23="ANUAL",J23="SEMESTRAL"),N17/2,IF(AND(N23="ANUAL",J23="ANUAL"),N17,IF(AND(N23="SEMESTRAL",J23="MENSUAL"),N17/6,IF(AND(N23="SEMESTRAL",J23="TRIMESTRAL"),N17/2,IF(AND(N23="SEMESTRAL",J23="SEMESTRAL"),N17,IF(AND(N23="SEMESTRAL",J23="ANUAL"),"REVISAR FRECUENCIAS",IF(AND(N23="TRIMESTRAL",J23="MENSUAL"),N17/3,IF(AND(N23="TRIMESTRAL",J23="TRIMESTRAL"),N17,IF(AND(N23="TRIMESTRAL",J23="SEMESTRAL"),"REVISAR FRECUENCIAS",IF(AND(N23="TRIMESTRAL",J23="ANUAL"),"REVISAR FRECUENCIAS",IF(AND(N23="MENSUAL",J23="MENSUAL"),N17,IF(AND(N23="MENSUAL",J23="TRIMESTRAL"),"REVISAR FRECUENCIAS",IF(AND(N23="MENSUAL",J23="SEMESTRAL"),"REVISAR FRECUENCIAS",IF(AND(N23="MENSUAL",J23="ANUAL"),"REVISAR FRECUENCIAS","")))))))))))))))) -> 0.9 | E49: =IF(AND(N23="ANUAL",J23="MENSUAL"),N17/12+D49,IF(AND(N23="ANUAL",J23="TRIMESTRAL"),N17/4+D49,IF(AND(N23="ANUAL",J23="SEMESTRAL"),N17/2+D49,IF(AND(N23="SEMESTRAL",J23="MENSUAL"),N17/6+D49,IF(AND(N23="SEMESTRAL",J23="TRIMESTRAL"),N17/2+D49,IF(AND(N23="SEMESTRAL",J23="SEMESTRAL"),N17,IF(AND(N23="TRIMESTRAL",J23="MENSUAL"),N17/3+D49,IF(AND(N23="TRIMESTRAL",J23="TRIMESTRAL"),N17,IF(AND(N23="MENSUAL",J23="MENSUAL"),N17,""))))))))) -> 0.9 | F49: =IF(AND(N23="ANUAL",J23="MENSUAL"),N17/12+E49,IF(AND(N23="ANUAL",J23="TRIMESTRAL"),N17/4+E49,IF(AND(N23="SEMESTRAL",J23="MENSUAL"),N17/6+E49,IF(AND(N23="SEMESTRAL",J23="TRIMESTRAL"),N17/2,IF(AND(N23="TRIMESTRAL",J23="MENSUAL"),N17/3+E49,IF(AND(N23="TRIMESTRAL",J23="TRIMESTRAL"),N17,IF(AND(N23="MENSUAL",J23="MENSUAL"),N17,""))))))) ->  | G49: =IF(AND(N23="ANUAL",J23="MENSUAL"),N17/12+F49,IF(AND(N23="ANUAL",J23="TRIMESTRAL"),N17/4+F49,IF(AND(N23="SEMESTRAL",J23="MENSUAL"),N17/6+F49,IF(AND(N23="SEMESTRAL",J23="TRIMESTRAL"),N17/2+F49,IF(AND(N23="TRIMESTRAL",J23="MENSUAL"),N17/3,IF(AND(N23="TRIMESTRAL",J23="TRIMESTRAL"),N17,IF(AND(N23="MENSUAL",J23="MENSUAL"),N17,""))))))) ->  | H49: =IF(AND($N$23="ANUAL",$J$23="MENSUAL"),$N$17/12+G49,IF(AND(N23="SEMESTRAL",J23="MENSUAL"),N17/6+G49,IF(AND(N23="TRIMESTRAL",J23="MENSUAL"),N17/3+G49,IF(AND(N23="MENSUAL",J23="MENSUAL"),N17,"")))) ->  | I49: =IF(AND($N$23="ANUAL",$J$23="MENSUAL"),$N$17/12+H49,IF(AND(N23="SEMESTRAL",J23="MENSUAL"),N17/6+H49,IF(AND(N23="TRIMESTRAL",J23="MENSUAL"),N17/3+H49,IF(AND(N23="MENSUAL",J23="MENSUAL"),N17,"")))) ->  | J49: =IF(AND($N$23="ANUAL",$J$23="MENSUAL"),$N$17/12+I49,IF(AND(N23="SEMESTRAL",J23="MENSUAL"),N17/6,IF(AND(N23="TRIMESTRAL",J23="MENSUAL"),N17/3,IF(AND(N23="MENSUAL",J23="MENSUAL"),N17,"")))) ->  | K49: =IF(AND($N$23="ANUAL",$J$23="MENSUAL"),$N$17/12+J49,IF(AND(N23="SEMESTRAL",J23="MENSUAL"),N17/6+J49,IF(AND(N23="TRIMESTRAL",J23="MENSUAL"),N17/3+J49,IF(AND(N23="MENSUAL",J23="MENSUAL"),N17,"")))) ->  | L49: =IF(AND($N$23="ANUAL",$J$23="MENSUAL"),$N$17/12+K49,IF(AND(N23="SEMESTRAL",J23="MENSUAL"),N17/6+K49,IF(AND(N23="TRIMESTRAL",J23="MENSUAL"),N17/3+K49,IF(AND(N23="MENSUAL",J23="MENSUAL"),N17,"")))) ->  | M49: =IF(AND($N$23="ANUAL",$J$23="MENSUAL"),$N$17/12+L49,IF(AND(N23="SEMESTRAL",J23="MENSUAL"),N17/6+L49,IF(AND(N23="TRIMESTRAL",J23="MENSUAL"),N17/3,IF(AND(N23="MENSUAL",J23="MENSUAL"),N17,"")))) ->  | N49: =IF(AND($N$23="ANUAL",$J$23="MENSUAL"),$N$17/12+M49,IF(AND(N23="SEMESTRAL",J23="MENSUAL"),N17/6+M49,IF(AND(N23="TRIMESTRAL",J23="MENSUAL"),N17/3+M49,IF(AND(N23="MENSUAL",J23="MENSUAL"),N17,"")))) ->  | O49: =IF(AND($N$23="ANUAL",$J$23="MENSUAL"),$N$17/12+N49,IF(AND(N23="SEMESTRAL",J23="MENSUAL"),N17/6+N49,IF(AND(N23="TRIMESTRAL",J23="MENSUAL"),N17/3+N49,IF(AND(N23="MENSUAL",J23="MENSUAL"),N17,"")))) -> 
C51: NIVEL DE SEGREGACIÓN *
C52: UNIDAD SEGREGADA (Ej. Facultad, Programa Académico, Área) | G52: RESULTADO | K52: ANÁLISIS DE DATOS SEGREGADO
G71: Estratégico | J71: Eficacia
G72: Misional | J72: Eficiencia
G73: Apoyo | J73: Acreditación
G74: Seguimiento, Medición, Análisis y Evaluación | J74: Positiva
G75: Direccionamiento Estratégico | J75: Negativa
G76: Planeación Institucional | J76: Por Unidad Regional
G77: Proyectos Especiales y Relaciones Interinstitucionales | J77: Por Facultad
G78: Sistemas Integrados | J78: Por Programa Académico
G79: Autoevaluación y Acreditación | J79: Por área
G80: Comunicaciones | J80: Por Laboratorio
G81: Formación y Aprendizaje | J81: Otros
G82: Ciencia, Tecnología e Innovación | J82: No Aplica
G83: Interacción Social Universitaria
G84: Bienestar Universitario
G85: Admisiones y Registro
G86: Graduados
G87: Dialogando con el Mundo
G88: Talento Humano
G89: Jurídica
G90: Financiera
G91: Sistemas y Tecnología
G92: Bienes y Servicios
G93: Documental
G94: Apoyo Académico
G95: Control Interno
G96: Control Disciplinario
G97: Servicio de Atención al Ciudadano

Sheet MIU-5
B2: REGRESAR
E5: MACROPROCESO ESTRATÉGICO | M5: CÓDIGO: ESGr027
E6: PROCESO GESTIÓN SISTEMAS INTEGRADOS - CALIDAD | M6: VERSIÓN: 8
E7: MATRIZ DE MEDICIÓN Y SEGUIMIENTO A LOS PROCESOS DE GESTIÓN | M7: VIGENCIA: 2023-07-28
M8: PÁGINA: 6 de 7
C10: FICHA DE INDICADOR
C12: MACROPROCESO | E12: Misional | I12: NOMBRE DEL INDICADOR | K12: Vinculación efectiva con la comunidad y el sector productivo
C13: PROCESO GESTIÓN | E13: Interacción Social Universitaria
C14: RESPONSABLE DE MEDICIÓN | E14: Dirección de Interacción Universitaria
C16: 1. COMPORTAMIENTO DE INDICADOR
C17: CLASIFICACIÓN DE LA MEDICIÓN | E17: 1 | H17: TIPO DE INDICADOR | J17: Acreditación | L17: META ANUAL | N17: 0.8
C18: FORMULA | E18: NUMERADOR | G18: # convenios en uso *100 | L18: UNIDAD DE MEDIDA | N18: Porcentual
E19: DENOMINADOR | G19: (# total de convenios vigentes)
C20: TENDENCIA | E20: Positiva | H20: NIVEL DE SEGREGACIÓN * | J20: Por Programa Académico | L20: ESCALA
L21: Deficiente | M21: Aceptable | N21: Bueno | O21: Excelente
L22: 0 - 59,9% | M22: 60% - 69,9% | N22: 70% - 79,9% | O22: 80% - 100%
C23: ORIGEN DE DATOS NUMERADOR | E23: Prácticas y pasantías realizadas en organizaciones con convenio | H23: FRECUENCIA DE LA MEDICIÓN | J23: SEMESTRAL | L23: FRECUENCIA DE RESULTADO | N23: SEMESTRAL
C24: ORIGEN DE DATOS DENOMINADOR | E24: Convenios vigentes
C26: RESULTADOS
J27: ANÁLISIS DE DATOS
J28: PRIMER SEMESTRE 2024.1: convenios se da uso a 256 convenios contando con diferentes decanaturas y programas. Se cumple la meta alcanzando un porcentaje del 82%. SEGUNDO SEMESTRE 2024.2: convenios se da uso a 259 convenios contando con diferentes decanaturas y programas. Se cumple la meta alcanzando un porcentaje del 82%.
J36: ACCIÓN FORMULADA
J37: Se establece utilización de convenios vigentes en cada unidad regional y programa asdcrito a la misma.
J44: RESPONSABLE
J45: =E14 -> Dirección de Interacción Universitaria
C48: PERIODO DE EVALUACIÓN
C49: MES | D49: =IF(J23="MENSUAL","ENERO",IF(J23="TRIMESTRAL","MARZO",IF(J23="SEMESTRAL","JUNIO",IF(J23="ANUAL",YEAR(TODAY()),"")))) -> JUNIO | E49: =IF(J23="MENSUAL","FEBRERO",IF(J23="TRIMESTRAL","JUNIO",IF(J23="SEMESTRAL","DICIEMBRE",""))) -> DICIEMBRE | F49: =IF(J23="MENSUAL","MARZO",IF(J23="TRIMESTRAL","SEPTIEMBRE","")) ->  | G49: =IF(J23="MENSUAL","ABRIL",IF(J23="TRIMESTRAL","DICIEMBRE","")) ->  | H49: =IF(J23="MENSUAL","MAYO","") ->  | I49: =IF(J23="MENSUAL","JUNIO","") ->  | J49: =IF(J23="MENSUAL","JULIO","") ->  | K49: =IF(J23="MENSUAL","AGOSTO","") ->  | L49: =IF(J23="MENSUAL","SEPTIEMBRE","") ->  | M49: =IF(J23="MENSUAL","OCTUBRE","") ->  | N49: =IF(J23="MENSUAL","NOVIEMBRE","") ->  | O49: =IF(J23="MENSUAL","DICIEMBRE","") -> 
C50: =G18 -> # convenios en uso *100 | D50: 256 | E50: 259
C51: =G19 -> (# total de convenios vigentes) | D51: 314 | E51: 314
C52: VALOR | D52: =IFERROR(IF($E$17=1,D50/D51,IF($E$17=2,D50,"")),"") -> 0.8152866242 | E52: =IFERROR(IF($E$17=1,E50/E51,IF($E$17=2,E50,"")),"") -> 0.8248407643
C53: META PONDERADA | D53: =IF(AND(N23="ANUAL",J23="MENSUAL"),N17/12,IF(AND(N23="ANUAL",J23="TRIMESTRAL"),N17/4,IF(AND(N23="ANUAL",J23="SEMESTRAL"),N17/2,IF(AND(N23="ANUAL",J23="ANUAL"),N17,IF(AND(N23="SEMESTRAL",J23="MENSUAL"),N17/6,IF(AND(N23="SEMESTRAL",J23="TRIMESTRAL"),N17/2,IF(AND(N23="SEMESTRAL",J23="SEMESTRAL"),N17,IF(AND(N23="SEMESTRAL",J23="ANUAL"),"REVISAR FRECUENCIAS",IF(AND(N23="TRIMESTRAL",J23="MENSUAL"),N17/3,IF(AND(N23="TRIMESTRAL",J23="TRIMESTRAL"),N17,IF(AND(N23="TRIMESTRAL",J23="SEMESTRAL"),"REVISAR FRECUENCIAS",IF(AND(N23="TRIMESTRAL",J23="ANUAL"),"REVISAR FRECUENCIAS",IF(AND(N23="MENSUAL",J23="MENSUAL"),N17,IF(AND(N23="MENSUAL",J23="TRIMESTRAL"),"REVISAR FRECUENCIAS",IF(AND(N23="MENSUAL",J23="SEMESTRAL"),"REVISAR FRECUENCIAS",IF(AND(N23="MENSUAL",J23="ANUAL"),"REVISAR FRECUENCIAS","")))))))))))))))) -> 0.8 | E53: =IF(AND(N23="ANUAL",J23="MENSUAL"),N17/12+D53,IF(AND(N23="ANUAL",J23="TRIMESTRAL"),N17/4+D53,IF(AND(N23="ANUAL",J23="SEMESTRAL"),N17/2+D53,IF(AND(N23="SEMESTRAL",J23="MENSUAL"),N17/6+D53,IF(AND(N23="SEMESTRAL",J23="TRIMESTRAL"),N17/2+D53,IF(AND(N23="SEMESTRAL",J23="SEMESTRAL"),N17,IF(AND(N23="TRIMESTRAL",J23="MENSUAL"),N17/3+D53,IF(AND(N23="TRIMESTRAL",J23="TRIMESTRAL"),N17,IF(AND(N23="MENSUAL",J23="MENSUAL"),N17,""))))))))) -> 0.8 | F53: =IF(AND(N23="ANUAL",J23="MENSUAL"),N17/12+E53,IF(AND(N23="ANUAL",J23="TRIMESTRAL"),N17/4+E53,IF(AND(N23="SEMESTRAL",J23="MENSUAL"),N17/6+E53,IF(AND(N23="SEMESTRAL",J23="TRIMESTRAL"),N17/2,IF(AND(N23="TRIMESTRAL",J23="MENSUAL"),N17/3+E53,IF(AND(N23="TRIMESTRAL",J23="TRIMESTRAL"),N17,IF(AND(N23="MENSUAL",J23="MENSUAL"),N17,""))))))) ->  | G53: =IF(AND(N23="ANUAL",J23="MENSUAL"),N17/12+F53,IF(AND(N23="ANUAL",J23="TRIMESTRAL"),N17/4+F53,IF(AND(N23="SEMESTRAL",J23="MENSUAL"),N17/6+F53,IF(AND(N23="SEMESTRAL",J23="TRIMESTRAL"),N17/2+F53,IF(AND(N23="TRIMESTRAL",J23="MENSUAL"),N17/3,IF(AND(N23="TRIMESTRAL",J23="TRIMESTRAL"),N17,IF(AND(N23="MENSUAL",J23="MENSUAL"),N17,""))))))) ->  | H53: =IF(AND($N$23="ANUAL",$J$23="MENSUAL"),$N$17/12+G53,IF(AND(N23="SEMESTRAL",J23="MENSUAL"),N17/6+G53,IF(AND(N23="TRIMESTRAL",J23="MENSUAL"),N17/3+G53,IF(AND(N23="MENSUAL",J23="MENSUAL"),N17,"")))) ->  | I53: =IF(AND($N$23="ANUAL",$J$23="MENSUAL"),$N$17/12+H53,IF(AND(N23="SEMESTRAL",J23="MENSUAL"),N17/6+H53,IF(AND(N23="TRIMESTRAL",J23="MENSUAL"),N17/3+H53,IF(AND(N23="MENSUAL",J23="MENSUAL"),N17,"")))) ->  | J53: =IF(AND($N$23="ANUAL",$J$23="MENSUAL"),$N$17/12+I53,IF(AND(N23="SEMESTRAL",J23="MENSUAL"),N17/6,IF(AND(N23="TRIMESTRAL",J23="MENSUAL"),N17/3,IF(AND(N23="MENSUAL",J23="MENSUAL"),N17,"")))) ->  | K53: =IF(AND($N$23="ANUAL",$J$23="MENSUAL"),$N$17/12+J53,IF(AND(N23="SEMESTRAL",J23="MENSUAL"),N17/6+J53,IF(AND(N23="TRIMESTRAL",J23="MENSUAL"),N17/3+J53,IF(AND(N23="MENSUAL",J23="MENSUAL"),N17,"")))) ->  | L53: =IF(AND($N$23="ANUAL",$J$23="MENSUAL"),$N$17/12+K53,IF(AND(N23="SEMESTRAL",J23="MENSUAL"),N17/6+K53,IF(AND(N23="TRIMESTRAL",J23="MENSUAL"),N17/3+K53,IF(AND(N23="MENSUAL",J23="MENSUAL"),N17,"")))) ->  | M53: =IF(AND($N$23="ANUAL",$J$23="MENSUAL"),$N$17/12+L53,IF(AND(N23="SEMESTRAL",J23="MENSUAL"),N17/6+L53,IF(AND(N23="TRIMESTRAL",J23="MENSUAL"),N17/3,IF(AND(N23="MENSUAL",J23="MENSUAL"),N17,"")))) ->  | N53: =IF(AND($N$23="ANUAL",$J$23="MENSUAL"),$N$17/12+M53,IF(AND(N23="SEMESTRAL",J23="MENSUAL"),N17/6+M53,IF(AND(N23="TRIMESTRAL",J23="MENSUAL"),N17/3+M53,IF(AND(N23="MENSUAL",J23="MENSUAL"),N17,"")))) ->  | O53: =IF(AND($N$23="ANUAL",$J$23="MENSUAL"),$N$17/12+N53,IF(AND(N23="SEMESTRAL",J23="MENSUAL"),N17/6+N53,IF(AND(N23="TRIMESTRAL",J23="MENSUAL"),N17/3+N53,IF(AND(N23="MENSUAL",J23="MENSUAL"),N17,"")))) -> 
C55: NIVEL DE SEGREGACIÓN PRIMER SEMESTRE:
C56: UNIDAD SEGREGADA (Ej. Facultad, Programa Académico, Área) | G56: RESULTADO | K56: ANÁLISIS DE DATOS SEGREGADO
C57: Facultad Ciencias Administrativas, Económicas y Contables | G57: =50/259 -> 0.1930501931 | K57: 50 convenios en uso, esta facultad para el primer periodo fue la mas representativa, y es normal la reducciòn de el uso por la cantidad de solictudes disminuye sustancialmente.
C58: Facultad de Ciencias Agropecuarias | G58: =86/259 -> 0.332046332 | K58: 86 convenios en uso,el auge de la facultad y sus porgramnas lo han potencializado dando relevancia en las solicitudes de los diferentes sectores.
C59: Facultad Ciencias del Deporte | G59: =15/259 -> 0.05791505792 | K59: 15 convenios en uso,esta facultad ubico mas estudiantes dando uso a convenios no reportados en primer periodo de 2024
C60: Facultad de Educación | G60: =65/259 -> 0.250965251 | K60: 65 convenios reportados en uso, indica q para este period segundo semestre 2024 se destaca esta facultad, ya que para el primer periodo no reporto uso
C61: Facultad de Ciencias Sociales, Humanidades y Ciencias Políticas | G61: =8/259 -> 0.03088803089 | K61: 8 convenio en uso, facultad que para el primer periodo 2024 no reporto, positivamnete para segundo da uso a convenios aumento sustancialmente..
C62: Facultad de Ingeniería | G62: =18/256 -> 0.0703125 | K62: 18 convenios en uso, en las diferentes unidades regionales se generaran alternativas y estartegis para conseguir mas alianzas estrategicas.
C63: Facultad de Ciencias de la Salud | G63: =39/256 -> 0.15234375 | K63: 39 convenios en usoesta facultad ahora cuenta con el programa de psicologia el cual aporta significativamente a este.
C64: Posgrados | G64: 0
C65: Dirección Administrativa
G75: Estratégico | J75: Eficacia
G76: Misional | J76: Eficiencia
G77: Apoyo | J77: Acreditación
G78: Seguimiento, Medición, Análisis y Evaluación | J78: Positiva
G79: Direccionamiento Estratégico | J79: Negativa
G80: Planeación Institucional | J80: Por Unidad Regional
G81: Proyectos Especiales y Relaciones Interinstitucionales | J81: Por Facultad
G82: Sistemas Integrados | J82: Por Programa Académico
G83: Autoevaluación y Acreditación | J83: Por área
G84: Comunicaciones | J84: Por Laboratorio
G85: Formación y Aprendizaje | J85: Otros
G86: Ciencia, Tecnología e Innovación | J86: No Aplica
G87: Interacción Social Universitaria
G88: Bienestar Universitario
G89: Admisiones y Registro
G90: Graduados
G91: Dialogando con el Mundo
G92: Talento Humano
G93: Jurídica
G94: Financiera
G95: Sistemas y Tecnología
G96: Bienes y Servicios
G97: Documental
G98: Apoyo Académico
G99: Control Interno
G100: Control Disciplinario
G101: Servicio de Atención al Ciudadano

Sheet ACTUALIZACIONES
C2: MACROPROCESO ESTRATÉGICO | E2: CÓDIGO: ESGr027
C3: PROCESO GESTIÓN SISTEMAS INTEGRADOS - CALIDAD | E3: VERSIÓN: 8
C4: MATRIZ DE MEDICIÓN Y SEGUIMIENTO A LOS PROCESOS DE GESTIÓN | E4: VIGENCIA: 2023-07-28
E5: PÁGINA: 7 de 7
B7: CONTROL DE ACTUALIZACIONES
B8: FECHA | C8: DESCRIPCIÓN DE LA ACTUALIZACIÓN | D8: RESPONSABLE | E8: CARGO
B9: 2020-03-31 | C9: ABS Se agregan dos nuevos indicadores para Acreditación "Mantenimiento a infraestructura de espacios académicos" y "Renovación y actualización de obras con enfoque inclusivo" | D9: Jaime Elder Acosta Ramírez | E9: Coordinador de Calidad
C10: MBU Se agrega un nuevo indicador para Acreditación "Participación de la Comunidad Universitaria"
C11: MIU Se agrega un nuevo indicador para Acreditación "Vinculación efectiva con la comunidad y el sector productivo"
B12: 2022-03-11 | C12: Se incrementa la meta del indicador MIU-1 "Evaluación de las actividades desarrolladas - Educación Continuada" de 80% a 85% para la vigencia 2022. Se incrementa la meta del indicador MIU-4 "Evaluación de las actividades de Proyección Social" de 80% a 90% para la vigencia 2022. | D12: Aura Esther Álvarez Lara | E12: Directora de Interacción Social Universitaria (F.A)
B13: 2023-03-16 | C13: MIU-1: Se actualiza el nombre del indicador de la siguiente manera: Evaluación de las actividades desarrolladas - Educación Continuada a Satisfacción del usuario del servicio de la Educación Continuada. Se incrementa la meta de un 85% a un 90%. Adicional, de la mano con el formato MIUr015 se generará un formulario digital lo que permitirá agilizar la recepción de los resultados y posterior, analizarlos. MIU-2: Se actualiza el nombre del indicador de la siguiente manera: Evaluación del pasante o practicante hacia la empresa o institución a Satisfacción del estudiante frente al desempeño en la práctica de pasantía. Se incrementa la meta de un 80% a un 85%. MIU-3: Se actualiza el nombre del indicador de la siguiente manera: "Evaluación de la Institución o Empresa hacia el pasante o practicante" a "Satisfacción de la Institución o Empresa hacia el desempeño de la práctica o pasantía". Se incrementa la meta de un 80% a un 95%. MIU-4: Teniendo en cuenta que la meta fue alcanzada en el último corte del año 2022, se incrementa la meta de un 90% a un 95% | D13: Ena Patricia Gil Bellido | E13: Directora de Interacción Social Universitaria
B14: 2023-07-04 | C14: De conformidad con la decisión tomada en sesión extraordinaria del Comité SAC del 04 de julio de 2023, "Los miembros del Comité SAC aprobaron por unanimidad, transferir del proceso Formación y Aprendizaje al proceso de Interacción Social Universitaria el indicador: MFA-17 - "Vinculación efectiva con la comunidad y el sector productivo". Para ISU queda nombrado el indicador como MIU-5. | D14: Ena Patricia Gil Bellido | E14: Directora de Interacción Social Universitaria
B15: 2023-08-18 | C15: Se incorpora Planificación de Actividades para cada objetivo específico | D15: Ena Patricia Gil Bellido | E15: Directora de Interacción Social Universitaria
B16: 2024-07-22 | C16: MIU-1 Satisfacción del usuario del servicio de la Educación Continuada: Se mantiene el indicador con la meta en 90%. MIU-2: Satisfacción del estudiante frente al escenario de práctica o pasantía: Se encuentra pendiente la proyección y definir el responsable de la medición. MIU-3 Satisfacción de la Institución o Empresa hacia el desempeño de la práctica o pasantía: Se encuentra pendiente la proyección y definir el responsable de la medición. MIU-4 Evaluación de las actividades de Proyección Social: Se mantiene el indicador con la meta en 95%. MIU-5 Vinculación efectiva con la comunidad y el sector productivo: Se mantiene el indicador con la meta en 80%. | D16: Ena Patricia Gil Bellido | E16: Directora de Interacción Social Universitaria
B26: Diagonal 18 No. 20-29 Fusagasugá – Cundinamarca Teléfono (601) 8281483 Línea Gratuita 018000180414 www.ucundinamarca.edu.co E-mail: info@ucundinamarca.edu.co NIT: 890.680.062-2
B29: Documento controlado por el Sistema de Gestión de la Calidad Asegúrese que corresponde a la última versión consultando el Portal Institucional

Sheet ITEM (hidden)
A1: MENSUAL | C1: NÚMERO
A2: TRIMESTRAL | C2: PORCENTAJE
A3: SEMESTRAL
A4: ANUAL
